Workbook

Sheet General
A1: COAPA. PUNTUACION LIGA 2025
D2: Federado | E2: 1 | F2: 2 | G2: 3 | H2: 4 | I2: 5 | J2: 6 | K2: 7 | L2: 8 | M2: 9 | N2: 10 | O2: 11 | P2: 12 | Q2: 13 | R2: 14 | S2: 15 | T2: 16 | U2: 17 | V2: 18 | W2: 19 | X2: 20 | Y2: 21 | Z2: 22 | AA2: 23 | AB2: 24 | AC2: 25 | AD2: 26 | AE2: 27 | AF2: 28 | AG2: 29 | AH2: 30 | AI2: 31 | AJ2: 33 | AK2: 34 | AL2: 35 | AM2: 36 | AN2: 37 | AO2: 38 | AP2: 39 | AQ2: 40 | AR2: 41 | AS2: 32 | AT2: 42 | AU2: 43 | AV2: 44 | AW2: 45 | AX2: 46 | AY2: 47 | AZ2: 48 | BA2: 49 | BB2: 50 | BC2: 51 | BD2: 52 | BE2: 53 | BF2: 54 | BG2: 55 | BH2: 56 | BI2: 57 | BJ2: 58 | BK2: 59 | BL2: Puntos
A3: Orden | B3: APELLIDOS | C3: NOMBRE | E3: MONEGROS-VILLAFRANCA | F3: FLOR DEL ALMENDRO-1-AYERBE | G3: FLOR DEL ALMENDRO-2-AYERBE | H3: RECONQUISTA-MONTAÑANA | I3: VILLA DE ANDORRA-ANDORRA | J3: ATADI-ALCORISA | K3: RUTA DE LA PIEDRA-PUEBLA ALB. | L3: C. MATARAÑA-MAZALEON | M3: C. CAMPO DE DAROCA-CUBEL | N3: M. S. POPULAR-BELCHITE | O3: TRAIL-VILLARROYA PINARES | P3: VILLA DE MEQINENZA | Q3: C. CUENCAS MINERAS-LA ZOMA | R3: LA VICORADA-SEDILES | S3: VILLA DE BIEL | T3: COMUNEROS-MIEDES DE ARA. | U3: ZUFARIADA-ZUERA | V3: EL SANTO-ANIÑON | W3: HOJAS MUERTAS-MONTALBAN | X3: TRAS L'ARBA DE TAUSTE | Y3: CIRCULAR DE ARRARO-CASBAS | Z3: LA GAYUBADA-TORRALBILLA | AA3: SIERRA VICORT-BELMONTE DE G. | AB3: JORGEADA DE ARAGON | AC3: C. MAESTRAZGO-CASTELLOTE | AD3: LAS CALZADAS-ALIAGA | AE3: VILLA DE ARIÑO | AF3: RODANAS-VILLA DE EPILA | AG3: MAESTRO ZAPATERO DE BREA | AH3: JACA-PUEBLOS DE LA SOLANA | AI3: CHUIQUIANDARINES | AJ3: NORDICA-VILLA DE ANDORRA | AK3: DEJA HUELLA-REY ARDID | AL3: LA SOTONERA-PLASENCIA-BOLEA | AM3: MIRADORES DEL P.-CASTEJON V. | AN3: NOCTURNA ZARAGOZA | AO3: PAPA LUNA-ILLUECA | AP3: RUTA DEL ACEBO-AÑON DE M. | AQ3: R. TRES IBONES-HECHO | AR3: PEÑA BAILADERA-CASTILLISCAR | AS3: CASTILLOS DE LA HOYA DE HU. | AT3: ANDADA SOBREPUERTO-YEBRA | AU3: RUTA DEL DIABLO-BIOTA-LAYANA | AV3: SIERRAS Y BARRANCOS-NOCITO | AW3: M. DEL ABADIADO-CASTILSABAS | AX3: C. DEL JILOCA-TORNOS | AY3: REDOLADA A ZARAGOZA | AZ3: RUTA DEL DESTIERRO-ATECA | BA3: PEÑARROYA TASTAVINS | BB3: C. MAESTRAZGO-PITARQUE | BC3: ARAGON SUR-TERUEL | BD3: VALLE DE ANSO-ANSO | BE3: BALNEARIOS DE JARABA-JARABA | BF3: SIERRA DE LUESIA-LUESIA | BG3: VILLA DE GARGALLO | BH3: LOS 3 RIOS-ARANDIGA-MORATA | BI3: BAJO LAS ESTRELLAS-AYERBE | BJ3: R. DEL MEZQUIN-CASTELSERAS | BK3: R. DE LAS ERMITAS-AYERBE
D4: =COUNTA(D6:D14661) -> 519 | E4: 552 | F4: 759 | G4: 795 | H4: 79 | I4: 292 | J4: 75 | K4: 269 | L4: 427 | M4: 63 | N4: 298 | O4: 141 | P4: 310 | Q4: 103 | R4: 160 | S4: 496 | T4: 108 | U4: 218 | V4: 275 | W4: 93 | X4: 201 | Y4: 36 | Z4: 194 | AA4: 207 | AB4: 934 | AC4: 124 | AD4: 83 | AE4: 123 | AF4: 62 | AG4: 344 | AH4: 368 | AI4: 99 | AJ4: =COUNTA(AJ6:AJ14661) -> 1 | AK4: 376 | AL4: 60 | AM4: 115 | AN4: 884 | AO4: 479 | AP4: 323 | AQ4: 239 | AR4: 50 | AS4: 214 | AT4: 64 | AU4: 251 | AV4: 28 | AW4: 42 | AX4: 55 | AY4: 218 | AZ4: 309 | BA4: 114 | BB4: 179 | BC4: 819 | BD4: 155 | BE4: 161 | BF4: 166 | BG4: 144 | BH4: 420 | BI4: 402 | BJ4: 1034 | BK4: 354 | BL4: =SUM(E4:BK4) -> 15944
A6: =_xlfn.RANK.EQ(BL6,$BL$6:$BL$14318,0) -> 1 | B6: ORTE GUERRERO | C6: ERNESTO | D6: 50 | E6: 37 | G6: 39 | K6: 40 | M6: 38 | R6: 41 | T6: 39 | U6: 40 | V6: 35 | Z6: 40 | AA6: 33 | AB6: 130 | AC6: 35 | AD6: 37 | AE6: 33 | AF6: 33 | AG6: 39 | AH6: 50 | AJ6: =IFERROR(VLOOKUP($BN6,Andada!$A:$D,7,FALSE),"NO") -> NO | AL6: 35 | AM6: 40 | AN6: 37 | AO6: 39 | AP6: 39 | AQ6: 51 | AS6: 53 | AT6: 39 | AU6: 29 | AV6: 35 | AX6: 37 | AY6: 39 | AZ6: 42 | BC6: 32 | BE6: 37 | BG6: 33 | BH6: 40 | BI6: 28 | BJ6: 38 | BK6: 33 | BL6: =SUM(D6:BK6) -> 1545 | BN6: =CONCATENATE(B6," ",C6) -> ORTE GUERRERO ERNESTO
A7: 2 | B7: NAVARRO GALLEGO | C7: DANIEL TOMAS | D7: 50 | F7: 39 | H7: 37 | J7: 33 | N7: 35 | R7: 41 | U7: 27 | V7: 35 | Y7: 35 | AA7: 33 | AB7: 130 | AC7: 35 | AD7: 37 | AE7: 33 | AF7: 33 | AG7: 39 | AH7: 50 | AL7: 35 | AM7: 40 | AN7: 37 | AO7: 39 | AP7: 39 | AS7: 53 | AT7: 39 | AU7: 29 | AV7: 35 | AW7: 35 | AX7: 37 | AY7: 39 | AZ7: 42 | BB7: 37 | BE7: 37 | BG7: 33 | BH7: 40 | BI7: 28 | BJ7: 38 | BK7: 33 | BL7: 1467 | BN7: NAVARRO GALLEGO DANIEL TOMAS
A8: 3 | B8: MARTINEZ JIMENEZ | C8: JUAN ANGEL | D8: 50 | E8: 37 | F8: 39 | H8: 37 | I8: 34 | K8: 40 | Q8: 38 | S8: 35 | U8: 40 | X8: 32 | Z8: 40 | AB8: 130 | AC8: 35 | AF8: 33 | AG8: 39 | AL8: 35 | AM8: 40 | AN8: 37 | AP8: 39 | AS8: 53 | AT8: 39 | AU8: 29 | AV8: 35 | AW8: 35 | AX8: 37 | AY8: 39 | AZ8: 42 | BC8: 32 | BE8: 37 | BG8: 33 | BH8: 40 | BI8: 28 | BJ8: 38 | BK8: 33 | BL8: 1360 | BN8: MARTINEZ JIMENEZ JUAN ANGEL
A9: 4 | B9: ARPAL ARANA | C9: LUIS MARIANO | D9: 50 | E9: 37 | F9: 39 | I9: 34 | M9: 38 | R9: 41 | S9: 35 | U9: 40 | X9: 32 | Z9: 40 | AA9: 33 | AC9: 35 | AD9: 37 | AE9: 33 | AF9: 33 | AG9: 39 | AH9: 50 | AM9: 40 | AN9: 37 | AO9: 39 | AP9: 39 | AR9: 36 | AS9: 53 | AT9: 39 | AU9: 29 | AV9: 35 | AW9: 35 | AX9: 37 | AY9: 39 | BC9: 32 | BF9: 35 | BG9: 33 | BH9: 40 | BJ9: 38 | BK9: 33 | BL9: 1315 | BN9: ARPAL ARANA LUIS MARIANO
A10: 5 | B10: TALON ESCAPA | C10: MIGUEL ANGEL | D10: 50 | E10: 37 | F10: 39 | H10: 37 | I10: 34 | J10: 33 | L10: 37 | Q10: 38 | T10: 39 | W10: 35 | X10: 32 | Z10: 40 | AB10: 43 | AC10: 35 | AD10: 37 | AE10: 33 | AG10: 39 | AH10: 50 | AL10: 35 | AN10: 37 | AS10: 53 | AT10: 39 | AU10: 29 | AV10: 35 | AW10: 35 | AY10: 39 | BD10: 29 | BG10: 33 | BH10: 40 | BI10: 28 | BJ10: 38 | BK10: 33 | BL10: 1191 | BN10: TALON ESCAPA MIGUEL ANGEL
A11: 6 | B11: SERRANO MOCHALES | C11: JOSE ANTONIO | D11: 50 | E11: 37 | F11: 39 | I11: 34 | K11: 40 | M11: 38 | T11: 39 | U11: 40 | V11: 35 | Z11: 40 | AA11: 33 | AB11: 80 | AD11: 37 | AE11: 33 | AF11: 33 | AG11: 39 | AR11: 36 | AS11: 53 | AT11: 39 | AV11: 35 | AX11: 37 | AY11: 39 | BE11: 37 | BG11: 33 | BH11: 40 | BL11: 996 | BN11: SERRANO MOCHALES JOSE ANTONIO
A12: 7 | B12: DAL AZNAR | C12: SERCHIO | D12: 50 | E12: 37 | F12: 39 | H12: 37 | K12: 40 | M12: 38 | U12: 40 | V12: 35 | Z12: 40 | AD12: 37 | AF12: 33 | AH12: 39 | AM12: 40 | AN12: 37 | AP12: 39 | AV12: 35 | AX12: 37 | AZ12: 42 | BD12: 29 | BG12: 33 | BH12: 40 | BJ12: 38 | BK12: 33 | BL12: 868 | BN12: DAL AZNAR SERCHIO
A13: 8 | B13: MAS MORENO | C13: LAURA | D13: 50 | E13: 37 | F13: 39 | H13: 37 | K13: 40 | M13: 38 | U13: 40 | V13: 35 | AD13: 37 | AF13: 33 | AH13: 39 | AM13: 40 | AN13: 37 | AP13: 39 | AV13: 35 | AX13: 37 | AZ13: 42 | BD13: 29 | BH13: 40 | BJ13: 38 | BK13: 33 | BL13: 795 | BN13: MAS MORENO LAURA
A14: 9 | B14: SERRANO RODRIGUEZ | C14: ALEJANDRO | D14: 50 | E14: 37 | F14: 39 | I14: 34 | K14: 40 | M14: 38 | Q14: 38 | S14: 35 | AB14: 130 | AN14: 37 | AS14: 53 | AY14: 39 | AZ14: 42 | BG14: 33 | BH14: 40 | BJ14: 38 | BK14: 33 | BL14: 756 | BN14: SERRANO RODRIGUEZ ALEJANDRO
A15: 10 | B15: CALVO CALLEJO | C15: JOSE IGNACIO | D15: 50 | E15: 37 | N15: 35 | S15: 35 | U15: 33 | Z15: 40 | AA15: 29 | AB15: 43 | AC15: 35 | AF15: 33 | AN15: 29 | AO15: 39 | AP15: 39 | AS15: 53 | AT15: 28 | AY15: 39 | AZ15: 42 | BH15: 40 | BL15: 679 | BN15: CALVO CALLEJO JOSE IGNACIO
A16: 11 | B16: INGALATURRE GRACIA | C16: MANUEL | D16: 50 | E16: 37 | I16: 34 | Q16: 38 | U16: 40 | W16: 35 | Z16: 40 | AD16: 37 | AF16: 33 | AH16: 50 | AO16: 39 | AT16: 39 | AV16: 35 | AY16: 39 | BB16: 37 | BH16: 40 | BJ16: 38 | BL16: 661 | BN16: INGALATURRE GRACIA MANUEL
A17: 12 | B17: BELTRAN BADAL | C17: NELIA | D17: 50 | E17: 33 | G17: 33 | I17: 34 | J17: 33 | N17: 27 | P17: 37 | U17: 33 | Z17: 30 | AA17: 29 | AB17: 33 | AE17: 33 | AH17: 29 | BB17: 37 | BG17: 33 | BH17: 40 | BI17: 28 | BJ17: 38 | BK17: 33 | BL17: 643 | BN17: BELTRAN BADAL NELIA
A18: 13 | B18: VERDE ORIGüEN | C18: JULIO | D18: 50 | E18: 33 | F18: 33 | K18: 40 | S18: 31 | V18: 30 | Z18: 40 | AB18: 33 | AF18: 26 | AM18: 27 | AN18: 37 | AS18: 53 | AY18: 30 | AZ18: 42 | BG18: 33 | BH18: 29 | BJ18: 38 | BK18: 27 | BL18: 632 | BN18: VERDE ORIGüEN JULIO
A19: 14 | B19: MARTINEZ DELGADO | C19: ANTONIO | D19: 50 | E19: 37 | I19: 29 | M19: 30 | R19: 30 | T19: 39 | V19: 35 | Z19: 30 | AA19: 29 | AF19: 33 | AG19: 39 | AO19: 39 | AP19: 39 | AZ19: 42 | BE19: 37 | BH19: 40 | BL19: 578 | BN19: MARTINEZ DELGADO ANTONIO
A20: 15 | B20: LANGARITA BERCERO | C20: ROBERTO | D20: 50 | E20: 33 | G20: 33 | U20: 33 | X20: 32 | AA20: 29 | AE20: 27 | AF20: 26 | AG20: 29 | AN20: 29 | AT20: 28 | AV20: 35 | AW20: 35 | AY20: 30 | BF20: 31 | BH20: 29 | BJ20: 34 | BK20: 33 | BL20: 576 | BN20: LANGARITA BERCERO ROBERTO
A21: 16 | B21: SANTACREU MASES | C21: MARIBEL | E21: 37 | G21: 39 | H21: 37 | J21: 33 | K21: 40 | P21: 37 | S21: 35 | U21: 40 | V21: 35 | X21: 32 | AS21: 53 | AT21: 39 | AY21: 39 | AZ21: 42 | BK21: 33 | BL21: 571 | BN21: SANTACREU MASES MARIBEL
A22: 17 | B22: MARTINEZ DELGADO | C22: VALENTIN | D22: 50 | E22: 37 | I22: 34 | M22: 38 | R22: 30 | T22: 39 | V22: 35 | Z22: 40 | AA22: 29 | AG22: 39 | AO22: 39 | AP22: 39 | AZ22: 42 | BE22: 37 | BH22: 40 | BL22: 568 | BN22: MARTINEZ DELGADO VALENTIN
A23: 18 | B23: FUSTA SOLSONA | C23: FRANCISCO | E23: 37 | G23: 39 | H23: 27 | J23: 33 | K23: 40 | P23: 37 | S23: 35 | U23: 40 | V23: 35 | X23: 32 | AS23: 53 | AT23: 39 | AY23: 39 | AZ23: 42 | BK23: 33 | BL23: 561 | BN23: FUSTA SOLSONA FRANCISCO
A24: 19 | B24: GIL AREJULA | C24: SILVIA | D24: 50 | E24: 37 | F24: 39 | I24: 34 | K24: 40 | R24: 41 | S24: 35 | AA24: 33 | AB24: 130 | BH24: 40 | BI24: 28 | BK24: 33 | BL24: 540 | BN24: GIL AREJULA SILVIA
A25: 20 | B25: LANGA LORENTE | C25: ELENA | D25: 50 | K25: 40 | S25: 35 | V25: 35 | Z25: 30 | AB25: 43 | AF25: 33 | AO25: 39 | AP25: 39 | AZ25: 42 | BD25: 29 | BE25: 37 | BH25: 40 | BK25: 33 | BL25: 525 | BN25: LANGA LORENTE ELENA
A26: 20 | B26: GUERRERO ALBA | C26: JAVIER | D26: 50 | K26: 40 | S26: 35 | V26: 35 | Z26: 30 | AB26: 43 | AF26: 33 | AO26: 39 | AP26: 39 | AZ26: 42 | BD26: 29 | BE26: 37 | BH26: 40 | BK26: 33 | BL26: 525 | BN26: GUERRERO ALBA JAVIER
A27: 22 | B27: UCHE ORDOVAS | C27: LUIS ANTONIO | D27: 50 | E27: 37 | K27: 40 | N27: 35 | S27: 35 | AB27: 130 | AG27: 39 | AY27: 39 | BH27: 40 | BK27: 33 | BL27: 478 | BN27: UCHE ORDOVAS LUIS ANTONIO
A28: 23 | B28: ACIN MURILLO | C28: JOSE ANTONIO | D28: 50 | E28: 37 | G28: 39 | K28: 40 | X28: 32 | AB28: 43 | AF28: 33 | AM28: 40 | AO28: 39 | AS28: 53 | BI28: 28 | BK28: 33 | BL28: 467 | BN28: ACIN MURILLO JOSE ANTONIO
A29: 24 | B29: NAVARRO ALONSO | C29: HECTOR | D29: 50 | H29: 37 | AB29: 130 | AD29: 37 | AG29: 39 | AN29: 37 | AP29: 39 | AS29: 53 | BK29: 33 | BL29: 455 | BN29: NAVARRO ALONSO HECTOR
A30: 25 | B30: BAHON MACARRON | C30: Mª CARMEN | D30: 50 | E30: 33 | F30: 33 | K30: 40 | S30: 31 | V30: 30 | AB30: 33 | AM30: 40 | AN30: 37 | AS30: 30 | AY30: 30 | BH30: 29 | BK30: 27 | BL30: 443 | BN30: BAHON MACARRON Mª CARMEN
A31: 26 | B31: LOZANO ESCOBEDO | C31: MARIO | D31: 50 | E31: 37 | I31: 34 | J31: 33 | N31: 35 | Z31: 40 | AF31: 33 | AT31: 39 | BB31: 37 | BG31: 33 | BJ31: 38 | BK31: 33 | BL31: 442 | BN31: LOZANO ESCOBEDO MARIO
A32: 27 | B32: CHABUEL GRACIA | C32: CONCHITA | D32: 50 | E32: 37 | F32: 39 | K32: 40 | N32: 32 | S32: 35 | AB32: 43 | AK32: 25 | AN32: 37 | AS32: 53 | AY32: 39 | BL32: 430 | BN32: CHABUEL GRACIA CONCHITA
A33: 28 | B33: GRIMA LEDESMA | C33: MARIA PILAR | D33: 50 | E33: 37 | R33: 41 | S33: 35 | U33: 40 | Z33: 40 | AB33: 130 | AM33: 40 | BL33: 413 | BN33: GRIMA LEDESMA MARIA PILAR
A34: 29 | B34: DE LA FUENTE RUIZ | C34: IGNACIO | K34: 40 | N34: 35 | P34: 37 | T34: 39 | U34: 40 | AB34: 130 | AN34: 37 | AS34: 53 | BL34: 411 | BN34: DE LA FUENTE RUIZ IGNACIO
A35: 30 | B35: PLUMED SANCHEZ | C35: ISIDRO | D35: 50 | E35: 37 | G35: 39 | K35: 40 | S35: 35 | AB35: 130 | AN35: 37 | AY35: 39 | BL35: 407 | BN35: PLUMED SANCHEZ ISIDRO
A36: 31 | B36: MENEZES DE ALMEIDA | C36: HIGOR | H36: 37 | N36: 35 | AB36: 130 | AG36: 39 | AL36: 35 | AN36: 37 | AP36: 39 | AS36: 53 | BL36: 405 | BN36: MENEZES DE ALMEIDA HIGOR
A37: 32 | B37: PINILLA LUNA | C37: JESUS | D37: 50 | E37: 37 | F37: 39 | K37: 40 | AB37: 130 | AM37: 40 | AS37: 53 | BL37: 389 | BN37: PINILLA LUNA JESUS
A38: 33 | B38: ROMEO ALADREN | C38: JOSE LUIS | D38: 50 | E38: 37 | I38: 34 | R38: 41 | T38: 39 | V38: 35 | Z38: 40 | AF38: 33 | AO38: 39 | BH38: 40 | BL38: 388 | BN38: ROMEO ALADREN JOSE LUIS
A39: 34 | B39: GONZALEZ FORNOS | C39: EMILIANO | D39: 50 | E39: 37 | G39: 39 | M39: 38 | R39: 41 | T39: 27 | X39: 32 | AG39: 39 | AM39: 40 | AP39: 39 | BL39: 382 | BN39: GONZALEZ FORNOS EMILIANO
A40: 35 | B40: LACHEN MATEO | C40: JAIME | D40: 50 | P40: 37 | S40: 35 | AH40: 50 | AL40: 35 | AO40: 39 | AS40: 53 | AT40: 39 | BH40: 40 | BL40: 378 | BN40: LACHEN MATEO JAIME
A41: 36 | B41: BARRAFON CABRERA | C41: REMIGIO | D41: 50 | E41: 37 | F41: 39 | H41: 27 | K41: 40 | N41: 35 | S41: 35 | AD41: 37 | BB41: 37 | BE41: 37 | BL41: 374 | BN41: BARRAFON CABRERA REMIGIO
A42: 37 | B42: FORCADA BLASCO | C42: SERGIO | E42: 37 | G42: 33 | H42: 37 | K42: 30 | N42: 35 | U42: 33 | AB42: 130 | AN42: 37 | BL42: 372 | BN42: FORCADA BLASCO SERGIO
A43: 38 | B43: SEVIL NAVARRO | C43: JACINTA | D43: 50 | E43: 33 | F43: 33 | K43: 40 | S43: 31 | AB43: 43 | AN43: 29 | AS43: 36 | AY43: 39 | BK43: 33 | BL43: 367 | BN43: SEVIL NAVARRO JACINTA
A44: 39 | B44: AZNAREZ FLORIAN | C44: JOSE MANUEL | K44: 40 | S44: 31 | AB44: 43 | AH44: 39 | AM44: 40 | AN44: 37 | AR44: 36 | AS44: 36 | BF44: 31 | BI44: 28 | BL44: 361 | BN44: AZNAREZ FLORIAN JOSE MANUEL
A45: 40 | B45: CRISTOBAL GARCIA | C45: ANA MARIA | D45: 50 | M45: 38 | R45: 41 | T45: 39 | V45: 35 | Z45: 40 | AP45: 39 | BE45: 37 | BH45: 40 | BL45: 359 | BN45: CRISTOBAL GARCIA ANA MARIA
A46: 40 | B46: GIL MARTINEZ | C46: EDUARDO JOSE JAVIER | D46: 50 | F46: 39 | K46: 40 | N46: 35 | R46: 41 | AW46: 35 | AZ46: 29 | BH46: 29 | BI46: 28 | BK46: 33 | BL46: 359 | BN46: GIL MARTINEZ EDUARDO JOSE JAVIER
A47: 42 | B47: MILLAN MAINAR | C47: ALFREDO | D47: 50 | E47: 33 | G47: 33 | I47: 29 | K47: 30 | Q47: 38 | Z47: 30 | AB47: 43 | AN47: 29 | AY47: 39 | BL47: 354 | BN47: MILLAN MAINAR ALFREDO
A48: 43 | B48: LLORENTE ALAMA | C48: SOFIA | D48: 50 | E48: 37 | F48: 33 | K48: 40 | V48: 30 | AF48: 33 | AM48: 40 | AN48: 37 | AS48: 53 | BL48: 353 | BN48: LLORENTE ALAMA SOFIA
A49: 44 | B49: ASENSIO SANCHEZ | C49: SALOMON | D49: 50 | E49: 37 | N49: 35 | S49: 35 | AB49: 130 | AN49: 29 | AS49: 36 | BL49: 352 | BN49: ASENSIO SANCHEZ SALOMON
A50: 45 | B50: GARCIA USON | C50: JESUS | D50: 50 | E50: 37 | K50: 40 | U50: 40 | AB50: 130 | AS50: 53 | BL50: 350 | BN50: GARCIA USON JESUS
A51: 46 | B51: RODRIGUEZ DE RIVERA RODRIGUEZ | C51: FEDERICO | D51: 50 | F51: 39 | K51: 40 | AB51: 130 | AN51: 37 | AS51: 53 | BL51: 349 | BN51: RODRIGUEZ DE RIVERA RODRIGUEZ FEDERICO
A52: 47 | B52: NAVARRO MILLAN | C52: ROCIO | D52: 50 | R52: 41 | T52: 39 | V52: 35 | Z52: 40 | AF52: 33 | AP52: 32 | BE52: 37 | BH52: 40 | BL52: 347 | BN52: NAVARRO MILLAN ROCIO
A53: 48 | B53: NAVARRO ARPAL | C53: EMILIO | D53: 50 | E53: 37 | AB53: 130 | AN53: 37 | AS53: 53 | AY53: 39 | BL53: 346 | BN53: NAVARRO ARPAL EMILIO
A54: 49 | B54: OLMEDA TURON | C54: ADOLFO | D54: 50 | E54: 37 | V54: 35 | AB54: 130 | AH54: 50 | AY54: 39 | BL54: 341 | BN54: OLMEDA TURON ADOLFO
A55: 50 | B55: PABLO CATALAN | C55: ALEJANDRO | E55: 37 | X55: 32 | AA55: 33 | AG55: 39 | AM55: 40 | AO55: 39 | AP55: 39 | AY55: 39 | AZ55: 42 | BL55: 340 | BN55: PABLO CATALAN ALEJANDRO
A56: 51 | B56: PISA SATORRA | C56: OSCAR | G56: 33 | U56: 33 | X56: 32 | AG56: 29 | AV56: 35 | AY56: 39 | BF56: 35 | BI56: 28 | BJ56: 38 | BK56: 33 | BL56: 335 | BN56: PISA SATORRA OSCAR
A57: 52 | B57: ALONSO POZA | C57: ANGEL | D57: 50 | E57: 37 | K57: 40 | S57: 35 | AB57: 43 | AG57: 39 | AN57: 37 | AS57: 53 | BL57: 334 | BN57: ALONSO POZA ANGEL
A58: 53 | B58: ARNAL ANSON | C58: JESUS | D58: 50 | E58: 37 | F58: 39 | K58: 40 | N58: 35 | X58: 32 | Z58: 40 | AB58: 33 | AK58: 25 | BL58: 331 | BN58: ARNAL ANSON JESUS
A59: 54 | B59: MARTINEZ MARTINEZ | C59: FELICISIMO | D59: 50 | I59: 34 | R59: 30 | T59: 27 | V59: 35 | Z59: 40 | AF59: 33 | AO59: 39 | BH59: 40 | BL59: 328 | BN59: MARTINEZ MARTINEZ FELICISIMO
A60: 55 | B60: BERMEJO LOPEZ | C60: OBDULIO | D60: 50 | E60: 33 | G60: 33 | N60: 32 | AB60: 33 | AN60: 37 | AS60: 36 | BH60: 29 | BK60: 33 | BL60: 316 | BN60: BERMEJO LOPEZ OBDULIO
A61: 56 | B61: Pedro Mur | C61: RocIo | D61: 50 | M61: 38 | R61: 41 | T61: 39 | V61: 35 | AA61: 33 | AZ61: 42 | BE61: 37 | BL61: 315 | BN61: Pedro Mur RocIo
A62: 57 | B62: VALER ANDRES | C62: Mª PILAR | D62: 50 | E62: 37 | F62: 39 | K62: 40 | S62: 35 | AB62: 43 | AN62: 29 | AY62: 39 | BL62: 312 | BN62: VALER ANDRES Mª PILAR
A63: 57 | B63: LATORRE CARBO | C63: JUAN | D63: 50 | F63: 39 | J63: 33 | Q63: 38 | AB63: 80 | AC63: 35 | BB63: 37 | BL63: 312 | BN63: LATORRE CARBO JUAN
A64: 59 | B64: DIEZ RUEDA | C64: MIGUEL ANGEL | D64: 50 | E64: 37 | G64: 39 | K64: 40 | AN64: 37 | AY64: 39 | BC64: 32 | BE64: 37 | BL64: 311 | BN64: DIEZ RUEDA MIGUEL ANGEL
A65: 60 | B65: PABLO ALCAINE | C65: NIEVES | D65: 50 | E65: 37 | F65: 33 | K65: 30 | N65: 32 | V65: 30 | AB65: 33 | AN65: 29 | AS65: 36 | BL65: 310 | BN65: PABLO ALCAINE NIEVES
A66: 60 | B66: BLAS LAINA | C66: JUAN LUIS | D66: 50 | E66: 37 | K66: 40 | AB66: 130 | AS66: 53 | BL66: 310 | BN66: BLAS LAINA JUAN LUIS
A67: 62 | B67: CAMPOS DELGADO | C67: CLAUDIO | D67: 50 | E67: 37 | F67: 39 | AB67: 130 | AS67: 53 | BL67: 309 | BN67: CAMPOS DELGADO CLAUDIO
A68: 63 | B68: LUENGO DOMINGO | C68: SALVADOR | D68: 50 | E68: 33 | S68: 35 | Z68: 40 | AB68: 43 | AN68: 37 | BE68: 37 | BK68: 33 | BL68: 308 | BN68: LUENGO DOMINGO SALVADOR
A69: 64 | B69: GRACIA BELTRAN | C69: LUCIA | D69: 50 | E69: 33 | N69: 27 | T69: 27 | AB69: 33 | AC69: 35 | AH69: 29 | AW69: 35 | BB69: 37 | BL69: 306 | BN69: GRACIA BELTRAN LUCIA
A70: =_xlfn.RANK.EQ(BL70,$BL$6:$BL$14318,0) -> 65 | B70: PALOMAS MARGENAT | C70: ANTONIO | D70: 50 | E70: 37 | Q70: 38 | AC70: 35 | AF70: 33 | AG70: 39 | BJ70: 38 | BK70: 33 | BL70: =SUM(D70:BK70) -> 303 | BN70: =CONCATENATE(B70," ",C70) -> PALOMAS MARGENAT ANTONIO
A71: 66 | B71: REMACHA SEVILLA | C71: REYES | D71: 50 | E71: 37 | F71: 39 | K71: 30 | S71: 35 | AB71: 43 | AY71: 39 | BI71: 28 | BL71: 301 | BN71: REMACHA SEVILLA REYES
A72: 67 | B72: POLA VILLARROYA | C72: JESUS | K72: 40 | S72: 35 | AB72: 130 | AS72: 53 | AY72: 39 | BL72: 297 | BN72: POLA VILLARROYA JESUS
A73: 68 | B73: AGUILAR GAYAN | C73: Mª DOLORES | D73: 50 | E73: 37 | K73: 40 | S73: 35 | AB73: 43 | AN73: 37 | AS73: 53 | BL73: 295 | BN73: AGUILAR GAYAN Mª DOLORES
A74: 68 | B74: MARCO PONGA | C74: JUAN CARLOS | D74: 50 | E74: 37 | G74: 39 | AB74: 130 | AY74: 39 | BL74: 295 | BN74: MARCO PONGA JUAN CARLOS
A75: 70 | B75: MORTE ANDIA | C75: Mª JOSE | D75: 50 | E75: 37 | K75: 40 | AB75: 130 | AN75: 37 | BL75: 294 | BN75: MORTE ANDIA Mª JOSE
A76: 70 | B76: LARROSA FERNANDEZ | C76: MANUEL | E76: 37 | K76: 30 | S76: 31 | AB76: 130 | AS76: 36 | AY76: 30 | BL76: 294 | BN76: LARROSA FERNANDEZ MANUEL
A77: 70 | B77: PASETA MARTINEZ | C77: LORENA | P77: 37 | S77: 35 | AF77: 26 | AH77: 29 | AL77: 35 | AO77: 39 | AS77: 36 | AT77: 28 | BH77: 29 | BL77: 294 | BN77: PASETA MARTINEZ LORENA
A78: 73 | B78: SANTOS SANCHEZ | C78: TERESA | D78: 50 | E78: 37 | F78: 39 | K78: 30 | AB78: 43 | AS78: 36 | AY78: 30 | BI78: 28 | BL78: 293 | BN78: SANTOS SANCHEZ TERESA
A79: 74 | B79: ALVAREZ IMAÑAS | C79: MANUEL | E79: 37 | N79: 35 | AB79: 130 | AN79: 37 | AS79: 53 | BL79: 292 | BN79: ALVAREZ IMAÑAS MANUEL
A80: 75 | B80: GONZALEZ PEREZ | C80: MARIO | D80: 50 | E80: 37 | S80: 35 | AB80: 130 | AN80: 37 | BL80: 289 | BN80: GONZALEZ PEREZ MARIO
A81: 75 | B81: AZNAREZ CORTINAS | C81: PILAR | K81: 40 | S81: 31 | X81: 32 | AB81: 43 | AH81: 39 | AN81: 37 | AS81: 36 | BF81: 31 | BL81: 289 | BN81: AZNAREZ CORTINAS PILAR
A82: 77 | B82: ZAPATA ZAPATA | C82: JOSE LUIS | G82: 39 | X82: 32 | AF82: 33 | AG82: 39 | AM82: 40 | AP82: 39 | BF82: 31 | BK82: 33 | BL82: 286 | BN82: ZAPATA ZAPATA JOSE LUIS
A83: 78 | B83: CHUECA TOVAR | C83: JOSE FELIX | D83: 50 | E83: 33 | F83: 39 | AL83: 35 | AV83: 35 | AW83: 35 | BH83: 29 | BI83: 28 | BL83: 284 | BN83: CHUECA TOVAR JOSE FELIX
A84: 78 | B84: GARCIA ANDRES | C84: SANTOS | D84: 50 | E84: 33 | F84: 39 | AL84: 35 | AV84: 35 | AW84: 35 | BH84: 29 | BI84: 28 | BL84: 284 | BN84: GARCIA ANDRES SANTOS
A85: 80 | B85: LAZARO MOZAS | C85: MIGUEL ANGEL | E85: 37 | K85: 40 | AB85: 130 | AN85: 37 | AY85: 39 | BL85: 283 | BN85: LAZARO MOZAS MIGUEL ANGEL
A86: 80 | B86: CANUDO SANAGUSTIN | C86: JOSE IGNACIO | D86: 50 | T86: 39 | AB86: 130 | AQ86: 64 | BL86: 283 | BN86: CANUDO SANAGUSTIN JOSE IGNACIO
A87: 80 | B87: CORRAL UBIETO | C87: YOLANDA | F87: 39 | AB87: 130 | AS87: 53 | BI87: 28 | BK87: 33 | BL87: 283 | BN87: CORRAL UBIETO YOLANDA
A88: 83 | B88: ESPES OJEA | C88: MAR | D88: 50 | E88: 37 | F88: 39 | K88: 40 | AB88: 33 | AS88: 53 | AY88: 30 | BL88: 282 | BN88: ESPES OJEA MAR
A89: 83 | B89: GARCIA NAVAS | C89: PATRICIA | D89: 50 | G89: 33 | I89: 34 | Y89: 35 | AB89: 33 | AS89: 36 | BI89: 28 | BK89: 33 | BL89: 282 | BN89: GARCIA NAVAS PATRICIA
A90: 85 | B90: PIEDRAFITA ORDUNA | C90: FRANC. JAVIER | D90: 50 | E90: 37 | G90: 39 | K90: 40 | S90: 35 | AB90: 80 | BL90: 281 | BN90: PIEDRAFITA ORDUNA FRANC. JAVIER
A91: 86 | B91: GRACIA PERALTA | C91: JOSE MIGUEL | W91: 35 | AE91: 33 | AH91: 29 | AO91: 39 | BG91: 33 | BH91: 40 | BJ91: 38 | BK91: 33 | BL91: 280 | BN91: GRACIA PERALTA JOSE MIGUEL
A92: 87 | B92: LARREA PEREZ | C92: FRANC. JAVIER | E92: 33 | K92: 40 | AB92: 130 | AN92: 37 | AY92: 39 | BL92: 279 | BN92: LARREA PEREZ FRANC. JAVIER
A93: 88 | B93: CASTAN FORADADA | C93: MIGUEL ANGEL | D93: 50 | E93: 37 | F93: 39 | K93: 40 | S93: 35 | AB93: 43 | AF93: 33 | BL93: 277 | BN93: CASTAN FORADADA MIGUEL ANGEL
A94: 88 | B94: SANCHEZ PAVO | C94: EVILASIO | N94: 35 | AB94: 130 | AH94: 50 | BD94: 29 | BK94: 33 | BL94: 277 | BN94: SANCHEZ PAVO EVILASIO
A95: 90 | B95: PALACIN LLOP | C95: HECTOR | D95: 50 | E95: 37 | N95: 35 | S95: 35 | AB95: 43 | AN95: 37 | AY95: 39 | BL95: 276 | BN95: PALACIN LLOP HECTOR
A96: 90 | B96: FERRERO CARBAJO | C96: CARMEN | D96: 50 | E96: 33 | F96: 33 | K96: 30 | S96: 31 | AB96: 33 | AS96: 36 | AY96: 30 | BL96: 276 | BN96: FERRERO CARBAJO CARMEN
A97: 92 | B97: GRACIA FRANCO | C97: FRANCISCA | D97: 50 | E97: 33 | G97: 39 | N97: 32 | S97: 35 | AB97: 33 | AS97: 53 | BL97: 275 | BN97: GRACIA FRANCO FRANCISCA
A98: 93 | B98: MUR GARCES | C98: ANGEL | D98: 50 | G98: 39 | AL98: 35 | AS98: 53 | AW98: 35 | BI98: 28 | BK98: 33 | BL98: 273 | BN98: MUR GARCES ANGEL
A99: 93 | B99: PABLO TORRES | C99: PEDRO | D99: 50 | E99: 37 | F99: 39 | T99: 39 | BE99: 37 | BJ99: 38 | BK99: 33 | BL99: 273 | BN99: PABLO TORRES PEDRO
A100: 95 | B100: LEDESMA LACARTA | C100: JOSE ANTONIO | X100: 32 | AB100: 130 | AG100: 39 | AN100: 37 | BK100: 33 | BL100: 271 | BN100: LEDESMA LACARTA JOSE ANTONIO
A101: 96 | B101: AZNAR DIEZ | C101: ANGEL | D101: 50 | E101: 37 | AB101: 130 | AS101: 53 | BL101: 270 | BN101: AZNAR DIEZ ANGEL
A102: 96 | B102: MORLANS MARTINEZ | C102: GUILLERMO | D102: 50 | E102: 37 | AB102: 130 | AS102: 53 | BL102: 270 | BN102: MORLANS MARTINEZ GUILLERMO
A103: 98 | B103: LACRUZ FRANCIA | C103: ISABEL | D103: 50 | E103: 26 | G103: 27 | I103: 29 | T103: 27 | Z103: 30 | AP103: 25 | BE103: 26 | BH103: 29 | BL103: 269 | BN103: LACRUZ FRANCIA ISABEL
A104: 99 | B104: HERNANDEZ RONCAL | C104: JOSE LUIS | D104: 50 | E104: 37 | S104: 35 | AB104: 43 | AN104: 37 | AS104: 36 | AY104: 30 | BL104: 268 | BN104: HERNANDEZ RONCAL JOSE LUIS
A105: 99 | B105: PALACIN SANCHEZ | C105: ANTONIO FERM. | D105: 50 | E105: 37 | N105: 27 | S105: 35 | AB105: 43 | AN105: 37 | AY105: 39 | BL105: 268 | BN105: PALACIN SANCHEZ ANTONIO FERM.
A106: 101 | B106: LARROSA VILAR | C106: VANESSA | E106: 37 | S106: 31 | AB106: 130 | AS106: 36 | AY106: 30 | BL106: 264 | BN106: LARROSA VILAR VANESSA
A107: 102 | B107: ROMEO GRACIA | C107: VALERO | D107: 50 | E107: 33 | F107: 33 | K107: 30 | AB107: 33 | AI107: 25 | AN107: 29 | AY107: 30 | BL107: 263 | BN107: ROMEO GRACIA VALERO
A108: 103 | B108: SESMA JIMENO | C108: MARIA ANTONIA | H108: 37 | I108: 34 | T108: 39 | AC108: 35 | AN108: 37 | AZ108: 42 | BJ108: 38 | BL108: 262 | BN108: SESMA JIMENO MARIA ANTONIA
A109: 104 | B109: LALAGUNA BAGUENA | C109: SILVIA | F109: 39 | AB109: 130 | AS109: 53 | AY109: 39 | BL109: 261 | BN109: LALAGUNA BAGUENA SILVIA
A110: 105 | B110: ALCOLEA BETES | C110: JOSE ANTONIO | D110: 50 | G110: 39 | K110: 40 | AB110: 130 | BL110: 259 | BN110: ALCOLEA BETES JOSE ANTONIO
A111: 105 | B111: JULIAN DOMINGO | C111: MARCOS | AB111: 130 | AN111: 29 | AY111: 39 | BI111: 28 | BK111: 33 | BL111: 259 | BN111: JULIAN DOMINGO MARCOS
A112: 107 | B112: LOPEZ ROMANOS | C112: JOAQUIN JAVIER | D112: 50 | E112: 37 | K112: 40 | AB112: 130 | BL112: 257 | BN112: LOPEZ ROMANOS JOAQUIN JAVIER
A113: 107 | B113: GINES PUERTO | C113: JOSE ANTONIO | J113: 33 | N113: 35 | Y113: 35 | AD113: 37 | AO113: 39 | AP113: 39 | AT113: 39 | BL113: 257 | BN113: GINES PUERTO JOSE ANTONIO
A114: 109 | B114: NARANJO SERRANO | C114: FERNANDO | D114: 50 | E114: 37 | AB114: 130 | AY114: 39 | BL114: 256 | BN114: NARANJO SERRANO FERNANDO
A115: 109 | B115: SEBASTIAN CHICHARRO | C115: MARIA JESUS | D115: 50 | E115: 37 | F115: 39 | AB115: 130 | BL115: 256 | BN115: SEBASTIAN CHICHARRO MARIA JESUS
A116: 111 | B116: ALVAREZ IRISARRI | C116: SANTIAGO | S116: 35 | AB116: 130 | AN116: 37 | AS116: 53 | BL116: 255 | BN116: ALVAREZ IRISARRI SANTIAGO
A117: 111 | B117: JUSTE ESPUÑA | C117: JOSE CARLOS | D117: 50 | E117: 33 | AB117: 43 | AN117: 37 | AS117: 53 | AY117: 39 | BL117: 255 | BN117: JUSTE ESPUÑA JOSE CARLOS
A118: 113 | B118: GIL GARATACHEA | C118: VICENTE | D118: 50 | E118: 37 | AB118: 130 | AN118: 37 | BL118: 254 | BN118: GIL GARATACHEA VICENTE
A119: 113 | B119: SANCHEZ NAVARRO | C119: FRANC. JAVIER | D119: 50 | E119: 37 | AB119: 130 | AN119: 37 | BL119: 254 | BN119: SANCHEZ NAVARRO FRANC. JAVIER
A120: 113 | B120: JAIME ELPON | C120: IVAN | D120: 50 | G120: 39 | AB120: 130 | AV120: 35 | BL120: 254 | BN120: JAIME ELPON IVAN
A121: 113 | B121: AIBAR MONTAÑES | C121: DOMINGO | D121: 50 | E121: 33 | F121: 33 | S121: 35 | AB121: 33 | AS121: 36 | BJ121: 34 | BL121: 254 | BN121: AIBAR MONTAÑES DOMINGO
A122: 113 | B122: LOBE VIDAL | C122: JOAQUIN | D122: 50 | E122: 33 | F122: 33 | S122: 35 | AB122: 33 | AS122: 36 | BJ122: 34 | BL122: 254 | BN122: LOBE VIDAL JOAQUIN
A123: 118 | B123: SIMON ARIZA | C123: CARMEN | D123: 50 | E123: 33 | G123: 39 | N123: 32 | AB123: 33 | AS123: 36 | BH123: 29 | BL123: 252 | BN123: SIMON ARIZA CARMEN
A124: 119 | B124: GRACIA CASTILLO | C124: JESUS M. | D124: 50 | E124: 37 | I124: 34 | N124: 35 | S124: 35 | AY124: 30 | BD124: 29 | BL124: 250 | BN124: GRACIA CASTILLO JESUS M.
A125: 120 | B125: VIDA AGUILAR | C125: RAFAEL | D125: 50 | G125: 39 | R125: 41 | AB125: 80 | AP125: 39 | BL125: 249 | BN125: VIDA AGUILAR RAFAEL
A126: 121 | B126: NADAL HERRERO | C126: ALBERTO | E126: 37 | K126: 40 | S126: 31 | AG126: 39 | AY126: 39 | BH126: 29 | BK126: 33 | BL126: 248 | BN126: NADAL HERRERO ALBERTO
A127: 122 | B127: RUZ DALDA | C127: MARIA LUISA | D127: 50 | G127: 33 | T127: 27 | AA127: 29 | AO127: 39 | AZ127: 29 | BH127: 40 | BL127: 247 | BN127: RUZ DALDA MARIA LUISA
A128: 123 | B128: CABALLER GALLART | C128: ALICIA | D128: 50 | E128: 37 | G128: 39 | K128: 40 | S128: 35 | AB128: 43 | BL128: 244 | BN128: CABALLER GALLART ALICIA
A129: 123 | B129: ANDREU GORMAZ | C129: VICTOR | D129: 50 | E129: 37 | F129: 39 | K129: 40 | S129: 35 | AB129: 43 | BL129: 244 | BN129: ANDREU GORMAZ VICTOR
A130: 125 | B130: MAGALLON LAHOZ | C130: Mª CARMEN | D130: 50 | E130: 33 | K130: 30 | S130: 31 | AB130: 33 | AS130: 36 | AY130: 30 | BL130: 243 | BN130: MAGALLON LAHOZ Mª CARMEN
A131: 126 | B131: MARSOL CIRIA | C131: MIGUEL ANGEL | D131: 50 | E131: 37 | M131: 38 | R131: 41 | T131: 39 | BE131: 37 | BL131: 242 | BN131: MARSOL CIRIA MIGUEL ANGEL
A132: 127 | B132: ALBERO CAMPOS | C132: PEDRO JESÙS | D132: 50 | E132: 33 | G132: 39 | K132: 30 | S132: 31 | AB132: 33 | AI132: 25 | BL132: 241 | BN132: ALBERO CAMPOS PEDRO JESÙS
A133: 127 | B133: TIERRA GALAN | C133: CARLOS | D133: 50 | F133: 33 | T133: 39 | AB133: 80 | AO133: 39 | BL133: 241 | BN133: =CONCATENATE(B133," ",C133) -> TIERRA GALAN CARLOS
A134: =_xlfn.RANK.EQ(BL134,$BL$6:$BL$14318,0) -> 127 | B134: SOBREVILLA CASO | C134: FERNANDO | V134: 35 | W134: 35 | Y134: 35 | AC134: 35 | AT134: 39 | BD134: 29 | BK134: 33 | BL134: =SUM(D134:BK134) -> 241 | BN134: SOBREVILLA CASO FERNANDO
A135: 130 | B135: RODRIGO GRACIA | C135: NOEMI | E135: 33 | U135: 40 | AB135: 130 | AN135: 37 | BL135: 240 | BN135: RODRIGO GRACIA NOEMI
A136: 131 | B136: PIAZUELO FERRER | C136: JOSE LUIS | E136: 37 | N136: 35 | AB136: 130 | AN136: 37 | BL136: 239 | BN136: PIAZUELO FERRER JOSE LUIS
A137: 132 | B137: ROCA OLIVER | C137: JAIME | X137: 32 | Z137: 40 | AB137: 33 | AL137: 35 | AN137: 37 | AT137: 28 | BK137: 33 | BL137: 238 | BN137: ROCA OLIVER JAIME
A138: 132 | B138: ESCAR NASARRE | C138: JAVIER | D138: 50 | G138: 39 | AS138: 53 | AW138: 35 | BI138: 28 | BK138: 33 | BL138: 238 | BN138: ESCAR NASARRE JAVIER
A139: 132 | B139: Royo Ostariz | C139: Luis | D139: 50 | T139: 39 | AG139: 39 | AO139: 39 | BJ139: 38 | BK139: 33 | BL139: 238 | BN139: Royo Ostariz Luis
A140: 135 | B140: PEREZ CARRILLO | C140: LUIS ANTONIO | D140: 50 | E140: 33 | F140: 33 | S140: 31 | AG140: 29 | AN140: 29 | AY140: 30 | BL140: 235 | BN140: PEREZ CARRILLO LUIS ANTONIO
A141: 135 | B141: MARQUINA HERNANDEZ | C141: RAFAEL | D141: 50 | E141: 37 | K141: 30 | AB141: 43 | AN141: 37 | BJ141: 38 | BL141: 235 | BN141: MARQUINA HERNANDEZ RAFAEL
A142: 135 | B142: Alvarez Belloso | C142: Miguel Angel | D142: 50 | M142: 38 | T142: 39 | V142: 35 | AA142: 33 | BH142: 40 | BL142: 235 | BN142: Alvarez Belloso Miguel Angel
A143: 135 | B143: BECERRIL DIEZ | C143: MARIA ISABEL | D143: 50 | M143: 38 | T143: 39 | V143: 35 | AA143: 33 | BH143: 40 | BL143: 235 | BN143: BECERRIL DIEZ MARIA ISABEL
A144: 139 | B144: Gormedino Villalba | C144: JosE Luis | R144: 41 | AA144: 33 | AG144: 39 | AO144: 39 | AZ144: 42 | BH144: 40 | BL144: 234 | BN144: Gormedino Villalba JosE Luis
A145: 139 | B145: CARNICER BENEDI | C145: LORENZO | E145: 37 | AG145: 39 | AP145: 39 | AZ145: 42 | BE145: 37 | BH145: 40 | BL145: 234 | BN145: CARNICER BENEDI LORENZO
A146: 141 | B146: GRACIA FRANCO | C146: VIOLETA | E146: 37 | F146: 39 | K146: 40 | S146: 31 | AB146: 33 | AS146: 53 | BL146: 233 | BN146: GRACIA FRANCO VIOLETA
A147: 142 | B147: MARCHENA VILLARIZ | C147: JOSE MARIA | K147: 40 | AB147: 80 | AN147: 37 | AS147: 36 | AY147: 39 | BL147: 232 | BN147: MARCHENA VILLARIZ JOSE MARIA
A148: 143 | B148: GIL MARTINEZ | C148: EDUARDO J. JAVI. | J148: 33 | S148: 35 | AA148: 33 | AB148: 130 | BL148: 231 | BN148: GIL MARTINEZ EDUARDO J. JAVI.
A149: 143 | B149: CASTRO MOLINA | C149: FELIPE | I149: 34 | J149: 33 | N149: 35 | Q149: 23 | W149: 35 | BG149: 33 | BJ149: 38 | BL149: 231 | BN149: CASTRO MOLINA FELIPE
A150: 145 | B150: LAZARO GARCIA | C150: CLARA | D150: 50 | E150: 37 | F150: 39 | K150: 30 | AB150: 33 | AH150: 39 | BL150: 228 | BN150: LAZARO GARCIA CLARA
A151: 146 | B151: LAZARO CONTAMINA | C151: SANTIAGO | D151: 50 | E151: 33 | K151: 30 | AB151: 33 | AK151: 25 | AN151: 29 | BK151: 27 | BL151: 227 | BN151: LAZARO CONTAMINA SANTIAGO
A152: 146 | B152: LANAS GONZALEZ | C152: JAVIER | N152: 35 | AB152: 130 | BD152: 29 | BK152: 33 | BL152: 227 | BN152: LANAS GONZALEZ JAVIER
A153: 148 | B153: MUR BETRAN | C153: JESUS | D153: 50 | E153: 37 | U153: 33 | AB153: 43 | AN153: 37 | BE153: 26 | BL153: 226 | BN153: MUR BETRAN JESUS
A154: 149 | B154: Bernad PelegrIn | C154: MarIa JesUs | D154: 50 | M154: 38 | X154: 32 | Y154: 35 | AW154: 35 | BK154: 33 | BL154: 223 | BN154: Bernad PelegrIn MarIa JesUs
A155: 150 | B155: GARCIA VALERO | C155: FCO JAVIER | AB155: 130 | AS155: 53 | AY155: 39 | BL155: 222 | BN155: GARCIA VALERO FCO JAVIER
A156: 150 | B156: LACALLE BLAZQUEZ | C156: JESUS | F156: 39 | AB156: 130 | AS156: 53 | BL156: 222 | BN156: LACALLE BLAZQUEZ JESUS
A157: 152 | B157: AGUDO AURED | C157: CESAR MANUEL | K157: 40 | Q157: 38 | W157: 35 | Z157: 40 | AC157: 35 | AF157: 33 | BL157: 221 | BN157: AGUDO AURED CESAR MANUEL
A158: 153 | B158: GASTELUT SAN FELIPE | C158: LUIS | AB158: 130 | AN158: 37 | AS158: 53 | BL158: 220 | BN158: GASTELUT SAN FELIPE LUIS
A159: 153 | B159: GARGALLO SORIANO | C159: CORAL | D159: 50 | F159: 39 | S159: 35 | AB159: 43 | AS159: 53 | BL159: 220 | BN159: GARGALLO SORIANO CORAL
A160: 153 | B160: GRACIA BENITO | C160: VIRGINIA | D160: 50 | E160: 37 | F160: 33 | S160: 31 | AB160: 33 | AS160: 36 | BL160: 220 | BN160: GRACIA BENITO VIRGINIA
A161: 153 | B161: VINUE BIESA | C161: ANTONIO | D161: 50 | E161: 37 | F161: 33 | S161: 31 | AB161: 33 | AS161: 36 | BL161: 220 | BN161: VINUE BIESA ANTONIO
A162: 157 | B162: AZNAREZ FLORIAN | C162: YOLANDA | E162: 37 | K162: 40 | S162: 31 | X162: 32 | AB162: 43 | AR162: 36 | BL162: 219 | BN162: AZNAREZ FLORIAN YOLANDA
A163: 157 | B163: BOLEA MAZA | C163: JOSEANTONIO | D163: 50 | F163: 39 | AB163: 130 | BL163: 219 | BN163: BOLEA MAZA JOSEANTONIO
A164: 157 | B164: CANUDO SANAGUSTIN | C164: MIGUEL ANGEL | D164: 50 | T164: 39 | AB164: 130 | BL164: 219 | BN164: CANUDO SANAGUSTIN MIGUEL ANGEL
A165: 157 | B165: GIL ROVIRA | C165: JUANKY | D165: 50 | G165: 39 | AB165: 130 | BL165: 219 | BN165: GIL ROVIRA JUANKY
A166: 157 | B166: MARTIN DE LA FUENTE | C166: ANGEL | D166: 50 | G166: 39 | AB166: 130 | BL166: 219 | BN166: MARTIN DE LA FUENTE ANGEL
A167: 157 | B167: PELLEJERO LOPEZ | C167: MARIA ANGELES | F167: 33 | R167: 41 | Z167: 40 | AF167: 33 | AL167: 35 | BE167: 37 | BL167: 219 | BN167: PELLEJERO LOPEZ MARIA ANGELES
A168: 157 | B168: VELA TORREA | C168: JOSE MARIA | F168: 33 | R168: 41 | Z168: 40 | AF168: 33 | AL168: 35 | BE168: 37 | BL168: 219 | BN168: VELA TORREA JOSE MARIA
A169: 164 | B169: ALCALDE LOPEZ | C169: JOSE LUIS | D169: 50 | E169: 37 | AB169: 130 | BL169: 217 | BN169: ALCALDE LOPEZ JOSE LUIS
A170: 164 | B170: AROLAS REQUEJO | C170: ANGEL | D170: 50 | E170: 37 | AB170: 130 | BL170: 217 | BN170: AROLAS REQUEJO ANGEL
A171: 164 | B171: MARCO OLMOSS | C171: PEPI | D171: 50 | E171: 37 | AB171: 130 | BL171: 217 | BN171: MARCO OLMOSS PEPI
A172: 164 | B172: PABLO SISAMON | C172: TOMAS | D172: 50 | E172: 37 | AB172: 130 | BL172: 217 | BN172: PABLO SISAMON TOMAS
A173: 164 | B173: ROMAN ARRANZ | C173: FRANC. JAVIER | D173: 50 | E173: 37 | AB173: 130 | BL173: 217 | BN173: ROMAN ARRANZ FRANC. JAVIER
A174: 169 | B174: TEMPRANO GARCIA | C174: IGNACIO | D174: 50 | E174: 37 | AN174: 37 | AS174: 53 | AY174: 39 | BL174: 216 | BN174: TEMPRANO GARCIA IGNACIO
A175: 170 | B175: BARRIO MOLINERO | C175: EUGENIO | D175: 50 | E175: 37 | K175: 40 | S175: 35 | AS175: 53 | BL175: 215 | BN175: BARRIO MOLINERO EUGENIO
A176: 171 | B176: BELLIDO DIEGO-MADRAZO | C176: JOSE CARLOS | D176: 50 | E176: 33 | K176: 30 | S176: 31 | AB176: 33 | AS176: 36 | BL176: 213 | BN176: BELLIDO DIEGO-MADRAZO JOSE CARLOS
A177: 171 | B177: ROMERO SANCHO | C177: ANA CRISTINA | D177: 50 | E177: 33 | G177: 33 | S177: 31 | AS177: 36 | AY177: 30 | BL177: 213 | BN177: ROMERO SANCHO ANA CRISTINA
A178: 173 | B178: ISLA GIL | C178: MANUEL | D178: 50 | F178: 27 | T178: 27 | AF178: 26 | AR178: 27 | BE178: 26 | BH178: 29 | BL178: 212 | BN178: ISLA GIL MANUEL
A179: 173 | B179: VERGARA LACRUZ | C179: CARMEN | D179: 50 | F179: 27 | T179: 27 | AF179: 26 | AR179: 27 | BE179: 26 | BH179: 29 | BL179: 212 | BN179: VERGARA LACRUZ CARMEN
A180: 173 | B180: SERRANO GONZALEZ | C180: MARIA CRUZ | D180: 50 | E180: 33 | F180: 33 | K180: 30 | AB180: 33 | BK180: 33 | BL180: 212 | BN180: SERRANO GONZALEZ MARIA CRUZ
A181: 176 | B181: MARCUELLO CARROSAN | C181: TERE | D181: 50 | E181: 33 | F181: 33 | K181: 30 | S181: 31 | AB181: 33 | BL181: 210 | BN181: MARCUELLO CARROSAN TERE
A182: 176 | B182: MUÑOZ MARTIN | C182: ISABEL | K182: 40 | S182: 35 | AB182: 43 | AS182: 53 | AY182: 39 | BL182: 210 | BN182: MUÑOZ MARTIN ISABEL
A183: 176 | B183: BENAVENTE CAVERNI | C183: MARIANO | F183: 39 | S183: 31 | Y183: 35 | AN183: 37 | BF183: 35 | BK183: 33 | BL183: 210 | BN183: BENAVENTE CAVERNI MARIANO
A184: 179 | B184: GARCIA SANCHEZ | C184: PEDRO JOSE | D184: 50 | E184: 33 | F184: 33 | K184: 30 | AB184: 33 | AY184: 30 | BL184: 209 | BN184: GARCIA SANCHEZ PEDRO JOSE
A185: 180 | B185: CORRAL UBIETO | C185: CARLOS | F185: 39 | AB185: 130 | AY185: 39 | BL185: 208 | BN185: CORRAL UBIETO CARLOS
A186: 181 | B186: PINILLA PINTIEL | C186: MAXIMO | D186: 50 | E186: 37 | K186: 40 | AB186: 43 | AN186: 37 | BL186: 207 | BN186: PINILLA PINTIEL MAXIMO
A187: 181 | B187: FERREIRA DE MIRANDA | C187: LOURDES | K187: 40 | AB187: 130 | AN187: 37 | BL187: 207 | BN187: FERREIRA DE MIRANDA LOURDES
A188: 181 | B188: GIMENEZ ALONSO | C188: LUCAS | D188: 50 | E188: 37 | S188: 35 | AH188: 50 | BF188: 35 | BL188: 207 | BN188: GIMENEZ ALONSO LUCAS
A189: 181 | B189: ULIAQUE ESTEBAN | C189: RICARDO | D189: 50 | E189: 33 | F189: 33 | K189: 30 | N189: 32 | AN189: 29 | BL189: 207 | BN189: ULIAQUE ESTEBAN RICARDO
A190: 185 | B190: VALLEJO MATIA | C190: FERNANDO | AB190: 130 | AN190: 37 | AY190: 39 | BL190: 206 | BN190: VALLEJO MATIA FERNANDO
A191: 185 | B191: CEBRIAN SEGURA | C191: MARIA SOCORRO | D191: 50 | E191: 37 | G191: 39 | Z191: 40 | AM191: 40 | BL191: 206 | BN191: CEBRIAN SEGURA MARIA SOCORRO
A192: 187 | B192: ALADREN SIMON | C192: JUAN CARLOS | E192: 37 | AB192: 130 | AN192: 37 | BL192: 204 | BN192: ALADREN SIMON JUAN CARLOS
A193: 188 | B193: RODRIGUES FILHO | C193: JOSE | D193: 50 | K193: 40 | Q193: 38 | W193: 35 | Z193: 40 | BL193: 203 | BN193: RODRIGUES FILHO JOSE
A194: 188 | B194: CATALAN RODRIGUEZ | C194: CAROLINA | E194: 33 | U194: 40 | AB194: 130 | BL194: 203 | BN194: CATALAN RODRIGUEZ CAROLINA
A195: 188 | B195: Campos Gimeno | C195: Santiago | D195: 50 | M195: 30 | AA195: 29 | AF195: 26 | AO195: 39 | BH195: 29 | BL195: 203 | BN195: Campos Gimeno Santiago
A196: 188 | B196: VELILLA SABADO | C196: PASCUAL | I196: 29 | J196: 33 | L196: 27 | W196: 25 | AC196: 35 | BG196: 27 | BJ196: 27 | BL196: 203 | BN196: VELILLA SABADO PASCUAL
A197: 192 | B197: BERBEL COBO | C197: SUSANA | G197: 27 | N197: 27 | U197: 27 | AH197: 29 | AN197: 29 | AS197: 30 | BK197: 33 | BL197: 202 | BN197: =CONCATENATE(B197," ",C197) -> BERBEL COBO SUSANA
A198: =_xlfn.RANK.EQ(BL198,$BL$6:$BL$14318,0) -> 193 | B198: BARRIENDOS NAVAL | C198: SANTIAGO | D198: 50 | E198: 37 | K198: 40 | S198: 35 | AH198: 39 | BL198: =SUM(D198:BK198) -> 201 | BN198: BARRIENDOS NAVAL SANTIAGO
A199: 193 | B199: VITALLER AYUSO | C199: BEATRIZ | E199: 33 | K199: 40 | AB199: 33 | AN199: 29 | AS199: 36 | AY199: 30 | BL199: 201 | BN199: VITALLER AYUSO BEATRIZ
A200: 193 | B200: SIMON PEREZ | C200: CESAR | D200: 50 | M200: 38 | T200: 39 | V200: 35 | AG200: 39 | BL200: 201 | BN200: SIMON PEREZ CESAR
A201: 196 | B201: CARIÑENA OLIVAN | C201: JOSE MIGUEL | D201: 50 | E201: 33 | K201: 30 | AB201: 33 | AI201: 25 | AN201: 29 | BL201: 200 | BN201: CARIÑENA OLIVAN JOSE MIGUEL
... 924 more rows

Sheet Andada
A3: CONC_APELLIDOS-NOMBRE | B3: CONC_APELLIDOS | C3: NOMBRE | E3: Evento | F3: Tarifa de inscripcion | G3: Precio total | H3: Nombre | I3: Apellidos | J3: RUTA
A4: =UPPER(CONCATENATE(I4," ",H4)) -> ABADIA ATARES IGNACIO | B4: =UPPER(I4) -> ABADIA ATARES | C4: =UPPER(H4) -> IGNACIO | D4: =IF(COUNTIF(General!A:BN,A4)>0,"Sí está","No está") -> Sí está | E4: Recorrido largo 18Km | F4: ADULTOS NO FEDERADOS | G4: 25 | H4: Ignacio | I4: Abadia Atares | J4: 33 | K4: 37
A5: =UPPER(CONCATENATE(I5," ",H5)) -> ABADIA BERGES MARIANO | B5: =UPPER(I5) -> ABADIA BERGES | C5: =UPPER(H5) -> MARIANO | D5: =IF(COUNTIF(General!A:BN,A5)>0,"Sí está","No está") -> Sí está | E5: Recorrido corto 12Km | F5: ADULTOS NO FEDERADOS | G5: 25 | H5: Mariano | I5: Abadia Berges | J5: 27
A6: ABADIA BERGES MARIO | B6: ABADIA BERGES | C6: MARIO | D6: =IF(COUNTIF(General!A:BN,A6)>0,"Sí está","No está") -> Sí está | E6: Recorrido corto 12Km | F6: ADULTOS NO FEDERADOS | G6: 25 | H6: Mario | I6: Abadia Berges | J6: 27
A7: ABADIA NADAL AGUSTIN | B7: ABADIA NADAL | C7: AGUSTIN | D7: =IF(COUNTIF(General!A:BN,A7)>0,"Sí está","No está") -> Sí está | E7: Recorrido largo 18Km | F7: ADULTOS NO FEDERADOS | G7: 25 | H7: Agustin | I7: Abadia Nadal | J7: 33
A8: ACIN MURILLO GLORIA | B8: ACIN MURILLO | C8: GLORIA | D8: =IF(COUNTIF(General!A:BN,A8)>0,"Sí está","No está") -> Sí está | E8: Recorrido largo 18Km | F8: ADULTOS FEDERADOS | G8: 24 | H8: Gloria | I8: Acin Murillo | J8: 33
A9: ACIN MURILLO JOSE ANTONIO | B9: ACIN MURILLO | C9: JOSE ANTONIO | D9: =IF(COUNTIF(General!A:BN,A9)>0,"Sí está","No está") -> Sí está | E9: Recorrido largo 18Km | F9: ADULTOS FEDERADOS | G9: 24 | H9: Jose Antonio | I9: Acin Murillo | J9: 33
A10: AGUADO CINTO JORDI | B10: AGUADO CINTO | C10: JORDI | D10: =IF(COUNTIF(General!A:BN,A10)>0,"Sí está","No está") -> Sí está | E10: Recorrido largo 18Km | F10: ADULTOS FEDERADOS | G10: 22 | H10: Jordi | I10: Aguado Cinto | J10: 33
A11: AIBAR MONTANES DOMINGO | B11: AIBAR MONTANES | C11: DOMINGO | D11: =IF(COUNTIF(General!A:BN,A11)>0,"Sí está","No está") -> Sí está | E11: Recorrido corto 12Km | F11: ADULTOS FEDERADOS | G11: 24 | H11: DOMINGO | I11: AIBAR MONTANES | J11: 27
A12: ALAIN ALAIN | B12: ALAIN | C12: ALAIN | D12: =IF(COUNTIF(General!A:BN,A12)>0,"Sí está","No está") -> Sí está | E12: Recorrido largo 18Km | F12: ACOMPANANTE (DESAYUNO, BARRA LIBRE Y COMIDA) | G12: 17 | H12: ALAIN | I12: ALAIN | J12: 33
A13: ALBERO CAMPOS PEDRO JESUS | B13: ALBERO CAMPOS | C13: PEDRO JESUS | D13: =IF(COUNTIF(General!A:BN,A13)>0,"Sí está","No está") -> Sí está | E13: Recorrido largo 18Km | F13: ADULTOS FEDERADOS | G13: 24 | H13: PEDRO JESUS | I13: Albero Campos | J13: 33
A14: ALCALA CARNICER IVAN | B14: ALCALA CARNICER | C14: IVAN | D14: =IF(COUNTIF(General!A:BN,A14)>0,"Sí está","No está") -> Sí está | E14: Recorrido largo 18Km | F14: ADULTOS NO FEDERADOS | G14: 25 | H14: Ivan | I14: Alcala Carnicer | J14: 33
A15: ALEGRE BERNAD ESPERANZA | B15: ALEGRE BERNAD | C15: ESPERANZA | D15: =IF(COUNTIF(General!A:BN,A15)>0,"Sí está","No está") -> Sí está | E15: Recorrido corto 12Km | F15: ADULTOS FEDERADOS | G15: 22 | H15: Esperanza | I15: Alegre Bernad | J15: 27
A16: ALEMANY SOLER PURIFICACION | B16: ALEMANY SOLER | C16: PURIFICACION | D16: =IF(COUNTIF(General!A:BN,A16)>0,"Sí está","No está") -> Sí está | E16: Recorrido largo 18Km | F16: ADULTOS FEDERADOS | G16: 22 | H16: PURIFICACION | I16: ALEMANY SOLER | J16: 33
A17: ALFARO SAUL | B17: ALFARO | C17: SAUL | D17: =IF(COUNTIF(General!A:BN,A17)>0,"Sí está","No está") -> Sí está | E17: Recorrido largo 18Km | F17: ADULTOS NO FEDERADOS | G17: 25 | H17: Saul | I17: Alfaro | J17: 33
A18: ALFARO QUEVEDO ZAYRA CAROLINA | B18: ALFARO QUEVEDO | C18: ZAYRA CAROLINA | D18: =IF(COUNTIF(General!A:BN,A18)>0,"Sí está","No está") -> Sí está | E18: Recorrido largo 18Km | F18: ADULTOS NO FEDERADOS | G18: 25 | H18: Zayra Carolina | I18: Alfaro Quevedo | J18: 33
A19: ALFONSO ISABEL | B19: ALFONSO | C19: ISABEL | D19: =IF(COUNTIF(General!A:BN,A19)>0,"Sí está","No está") -> Sí está | E19: Recorrido corto 12Km | F19: ADULTOS NO FEDERADOS | G19: 25 | H19: Isabel | I19: Alfonso | J19: 27
A20: ALIAGA RABINAL MARIA DOLORES | B20: ALIAGA RABINAL | C20: MARIA DOLORES | D20: =IF(COUNTIF(General!A:BN,A20)>0,"Sí está","No está") -> Sí está | E20: Recorrido largo 18Km | F20: ADULTOS FEDERADOS | G20: 22 | H20: Maria Dolores | I20: ALIAGA RABINAL | J20: 33
A21: ALONSO LIRA ANA ISABEL | B21: ALONSO LIRA | C21: ANA ISABEL | D21: =IF(COUNTIF(General!A:BN,A21)>0,"Sí está","No está") -> Sí está | E21: Recorrido corto 12Km | F21: ADULTOS NO FEDERADOS | G21: 25 | H21: Ana Isabel | I21: Alonso Lira | J21: 27
A22: ALVIRA MIGUEL ANGEL | B22: ALVIRA | C22: MIGUEL ANGEL | D22: =IF(COUNTIF(General!A:BN,A22)>0,"Sí está","No está") -> Sí está | E22: Recorrido corto 12Km | F22: ADULTOS FEDERADOS | G22: 22 | H22: MIGUEL ANGEL | I22: ALVIRA | J22: 27
A23: AMADOR VALENCIA FERNANDO | B23: AMADOR VALENCIA | C23: FERNANDO | D23: =IF(COUNTIF(General!A:BN,A23)>0,"Sí está","No está") -> Sí está | E23: Recorrido largo 18Km | F23: ADULTOS NO FEDERADOS | G23: 25 | H23: FERNANDO | I23: AMADOR VALENCIA | J23: 33
A24: ANAUT GAYARRE EDUARDO | B24: ANAUT GAYARRE | C24: EDUARDO | D24: =IF(COUNTIF(General!A:BN,A24)>0,"Sí está","No está") -> Sí está | E24: Recorrido largo 18Km | F24: ADULTOS FEDERADOS | G24: 22 | H24: EDUARDO | I24: ANAUT GAYARRE | J24: 33
A25: ANIES OLMOS MARIA TERESA | B25: ANIES OLMOS | C25: MARIA TERESA | D25: =IF(COUNTIF(General!A:BN,A25)>0,"Sí está","No está") -> Sí está | E25: Recorrido largo 18Km | F25: ADULTOS FEDERADOS | G25: 22 | H25: Maria Teresa | I25: Anies Olmos | J25: 33
A26: ARAGON SIPAN EVA | B26: ARAGON SIPAN | C26: EVA | D26: =IF(COUNTIF(General!A:BN,A26)>0,"Sí está","No está") -> Sí está | E26: Recorrido largo 18Km | F26: ADULTOS NO FEDERADOS | G26: 25 | H26: Eva | I26: Aragon sipan | J26: 33
A27: ARANDA ARTAL FRANCISCO | B27: ARANDA ARTAL | C27: FRANCISCO | D27: =IF(COUNTIF(General!A:BN,A27)>0,"Sí está","No está") -> Sí está | E27: Recorrido largo 18Km | F27: ADULTOS NO FEDERADOS | G27: 25 | H27: Francisco | I27: Aranda Artal | J27: 33
A28: ARASCO LABENA MANUEL | B28: ARASCO LABENA | C28: MANUEL | D28: =IF(COUNTIF(General!A:BN,A28)>0,"Sí está","No está") -> Sí está | E28: Recorrido largo 18Km | F28: ADULTOS NO FEDERADOS | G28: 25 | H28: Manuel | I28: Arasco Labena | J28: 33
A29: ARBUES TORRALBA ANTONIO | B29: ARBUES TORRALBA | C29: ANTONIO | D29: =IF(COUNTIF(General!A:BN,A29)>0,"Sí está","No está") -> Sí está | E29: Recorrido corto 12Km | F29: ADULTOS NO FEDERADOS | G29: 25 | H29: Antonio | I29: Arbues Torralba | J29: 27
A30: ARGUEDAS ORTE FERNANDO | B30: ARGUEDAS ORTE | C30: FERNANDO | D30: =IF(COUNTIF(General!A:BN,A30)>0,"Sí está","No está") -> Sí está | E30: Recorrido largo 18Km | F30: ADULTOS NO FEDERADOS | G30: 25 | H30: Fernando | I30: Arguedas orte | J30: 33
A31: ARNAL CAMPANA LYDIA | B31: ARNAL CAMPANA | C31: LYDIA | D31: =IF(COUNTIF(General!A:BN,A31)>0,"Sí está","No está") -> Sí está | E31: Recorrido corto 12Km | F31: ADULTOS NO FEDERADOS | G31: 25 | H31: Lydia | I31: Arnal Campana | J31: 27
A32: ARNAL NONAY NABORA | B32: ARNAL NONAY | C32: NABORA | D32: =IF(COUNTIF(General!A:BN,A32)>0,"Sí está","No está") -> Sí está | E32: Recorrido largo 18Km | F32: ADULTOS NO FEDERADOS | G32: 25 | H32: Nabora | I32: Arnal Nonay | J32: 33
A33: ARPAL ARANA LUIS MARIANO | B33: ARPAL ARANA | C33: LUIS MARIANO | D33: =IF(COUNTIF(General!A:BN,A33)>0,"Sí está","No está") -> Sí está | E33: Recorrido largo 18Km | F33: ADULTOS FEDERADOS | G33: 22 | H33: Luis Mariano | I33: Arpal Arana | J33: 33
A34: ARRUEGO AZNAR MARIA ROSA | B34: ARRUEGO AZNAR | C34: MARIA ROSA | D34: =IF(COUNTIF(General!A:BN,A34)>0,"Sí está","No está") -> Sí está | E34: Recorrido largo 18Km | F34: ADULTOS NO FEDERADOS | G34: 25 | H34: MARIA ROSA | I34: ARRUEGO AZNAR | J34: 33
A35: ARRUEGO AZNAR MARIA JESUS | B35: ARRUEGO AZNAR | C35: MARIA JESUS | D35: =IF(COUNTIF(General!A:BN,A35)>0,"Sí está","No está") -> Sí está | E35: Recorrido largo 18Km | F35: ADULTOS NO FEDERADOS | G35: 25 | H35: MARIA JESUS | I35: ARRUEGO AZNAR | J35: 33
A36: ASCASO MARTINEZ CRISTINA | B36: ASCASO MARTINEZ | C36: CRISTINA | D36: =IF(COUNTIF(General!A:BN,A36)>0,"Sí está","No está") -> Sí está | E36: Recorrido largo 18Km | F36: ADULTOS NO FEDERADOS | G36: 25 | H36: Cristina | I36: Ascaso Martinez | J36: 33
A37: ASSO GELLA LAURA | B37: ASSO GELLA | C37: LAURA | D37: =IF(COUNTIF(General!A:BN,A37)>0,"Sí está","No está") -> Sí está | E37: Recorrido corto 12Km | F37: ADULTOS NO FEDERADOS | G37: 25 | H37: Laura | I37: Asso Gella | J37: 27
A38: ATARES PLASIN JAVIER | B38: ATARES PLASIN | C38: JAVIER | D38: =IF(COUNTIF(General!A:BN,A38)>0,"Sí está","No está") -> Sí está | E38: Recorrido largo 18Km | F38: ADULTOS FEDERADOS | G38: 24 | H38: Javier | I38: Atares Plasin | J38: 33
A39: AURIA RUIZ ANTONIO | B39: AURIA RUIZ | C39: ANTONIO | D39: =IF(COUNTIF(General!A:BN,A39)>0,"Sí está","No está") -> Sí está | E39: Recorrido corto 12Km | F39: ADULTOS FEDERADOS | G39: 24 | H39: Antonio | I39: Auria Ruiz | J39: 27
A40: AYERBE CARMEN | B40: AYERBE | C40: CARMEN | D40: =IF(COUNTIF(General!A:BN,A40)>0,"Sí está","No está") -> Sí está | E40: Recorrido corto 12Km | F40: ADULTOS FEDERADOS | G40: 22 | H40: Carmen | I40: Ayerbe | J40: 27
A41: AZNAREZ JOSE MANUEL | B41: AZNAREZ | C41: JOSE MANUEL | D41: =IF(COUNTIF(General!A:BN,A41)>0,"Sí está","No está") -> Sí está | E41: Recorrido largo 18Km | F41: ADULTOS NO FEDERADOS | G41: 25 | H41: Jose Manuel | I41: Aznarez | J41: 33
A42: AZNAREZ CORTINAS YOLANDA | B42: AZNAREZ CORTINAS | C42: YOLANDA | D42: =IF(COUNTIF(General!A:BN,A42)>0,"Sí está","No está") -> Sí está | E42: Recorrido largo 18Km | F42: ADULTOS NO FEDERADOS | G42: 25 | H42: Yolanda | I42: Aznarez Cortinas | J42: 33
A43: BAEZA SANZ ANDREA | B43: BAEZA SANZ | C43: ANDREA | D43: =IF(COUNTIF(General!A:BN,A43)>0,"Sí está","No está") -> Sí está | E43: Recorrido largo 18Km | F43: ADULTOS NO FEDERADOS | G43: 25 | H43: ANDREA | I43: BAEZA SANZ | J43: 33
A44: BAHON MACARRON Mª CARMEN | B44: BAHON MACARRON | C44: Mª CARMEN | D44: =IF(COUNTIF(General!A:BN,A44)>0,"Sí está","No está") -> Sí está | E44: Recorrido corto 12Km | F44: ADULTOS FEDERADOS | G44: 22 | H44: Mª CARMEN | I44: BAHON MACARRON | J44: 27
A45: BAIGORRI TARAZONA MARIA ISABEL | B45: BAIGORRI TARAZONA | C45: MARIA ISABEL | D45: =IF(COUNTIF(General!A:BN,A45)>0,"Sí está","No está") -> Sí está | E45: Recorrido corto 12Km | F45: ADULTOS NO FEDERADOS | G45: 27 | H45: Maria Isabel | I45: BAIGORRI TARAZONA | J45: 27
A46: BAILO BELTRAN JOSE MANUEL | B46: BAILO BELTRAN | C46: JOSE MANUEL | D46: =IF(COUNTIF(General!A:BN,A46)>0,"Sí está","No está") -> Sí está | E46: Recorrido corto 12Km | F46: ADULTOS NO FEDERADOS | G46: 27 | H46: JOSE MANUEL | I46: BAILO BELTRAN | J46: 27
A47: BARON ARQUE SANDRA | B47: BARON ARQUE | C47: SANDRA | D47: =IF(COUNTIF(General!A:BN,A47)>0,"Sí está","No está") -> Sí está | E47: Recorrido corto 12Km | F47: ADULTOS NO FEDERADOS | G47: 25 | H47: Sandra | I47: Baron Arque | J47: 27
A48: BAYO VICTOR | B48: BAYO | C48: VICTOR | D48: =IF(COUNTIF(General!A:BN,A48)>0,"Sí está","No está") -> Sí está | E48: Recorrido corto 12Km | F48: ADULTOS NO FEDERADOS | G48: 25 | H48: VICTOR | I48: BAYO | J48: 27
A49: BAYO DIEGO | B49: BAYO | C49: DIEGO | D49: =IF(COUNTIF(General!A:BN,A49)>0,"Sí está","No está") -> Sí está | E49: Recorrido corto 12Km | F49: ADULTOS NO FEDERADOS | G49: 25 | H49: DIEGO | I49: BAYO | J49: 27
A50: BEAMONTE ARBUES MIRIAM | B50: BEAMONTE ARBUES | C50: MIRIAM | D50: =IF(COUNTIF(General!A:BN,A50)>0,"Sí está","No está") -> Sí está | E50: Recorrido corto 12Km | F50: ADULTOS NO FEDERADOS | G50: 25 | H50: Miriam | I50: Beamonte Arbues | J50: 27
A51: BELENGUER GUERRERO JESUS | B51: BELENGUER GUERRERO | C51: JESUS | D51: =IF(COUNTIF(General!A:BN,A51)>0,"Sí está","No está") -> Sí está | E51: Recorrido largo 18Km | F51: ADULTOS FEDERADOS | G51: 22 | H51: Jesus | I51: Belenguer Guerrero | J51: 33
A52: BELTRAN BADAL NELIA | B52: BELTRAN BADAL | C52: NELIA | D52: =IF(COUNTIF(General!A:BN,A52)>0,"Sí está","No está") -> Sí está | E52: Recorrido largo 18Km | F52: ADULTOS FEDERADOS | G52: 22 | H52: Nelia | I52: Beltran Badal | J52: 33
A53: BENAVENTE CAVERNI MARIANO | B53: BENAVENTE CAVERNI | C53: MARIANO | D53: =IF(COUNTIF(General!A:BN,A53)>0,"Sí está","No está") -> Sí está | E53: Recorrido largo 18Km | F53: ADULTOS NO FEDERADOS | G53: 25 | H53: Mariano | I53: Benavente Caverni | J53: 33
A54: BENEDI ARTAL SONIA | B54: BENEDI ARTAL | C54: SONIA | D54: =IF(COUNTIF(General!A:BN,A54)>0,"Sí está","No está") -> Sí está | E54: Recorrido corto 12Km | F54: ADULTOS NO FEDERADOS | G54: 25 | H54: SONIA | I54: BENEDI ARTAL | J54: 27
A55: BENITO GOMEZ DANIEL | B55: BENITO GOMEZ | C55: DANIEL | D55: =IF(COUNTIF(General!A:BN,A55)>0,"Sí está","No está") -> Sí está | E55: Recorrido largo 18Km | F55: ADULTOS NO FEDERADOS | G55: 25 | H55: Daniel | I55: Benito Gomez | J55: 33
A56: BENITO MARIN JOSE ANTONIO | B56: BENITO MARIN | C56: JOSE ANTONIO | D56: =IF(COUNTIF(General!A:BN,A56)>0,"Sí está","No está") -> Sí está | E56: Recorrido largo 18Km | F56: ADULTOS FEDERADOS | G56: 22 | H56: Jose Antonio | I56: Benito Marin | J56: 33
A57: BERBEL COBO SUSANA | B57: BERBEL COBO | C57: SUSANA | D57: =IF(COUNTIF(General!A:BN,A57)>0,"Sí está","No está") -> Sí está | E57: Recorrido largo 18Km | F57: ADULTOS NO FEDERADOS | G57: 25 | H57: Susana | I57: Berbel Cobo | J57: 33
A58: BERGES EZQUERRA BEGONA | B58: BERGES EZQUERRA | C58: BEGONA | D58: =IF(COUNTIF(General!A:BN,A58)>0,"Sí está","No está") -> Sí está | E58: Recorrido corto 12Km | F58: ADULTOS NO FEDERADOS | G58: 25 | H58: Begona | I58: Berges Ezquerra | J58: 27
A59: BERMEJO LOPEZ OBDULIO | B59: BERMEJO LOPEZ | C59: OBDULIO | D59: =IF(COUNTIF(General!A:BN,A59)>0,"Sí está","No está") -> Sí está | E59: Recorrido largo 18Km | F59: ADULTOS FEDERADOS | G59: 24 | H59: Obdulio | I59: Bermejo Lopez | J59: 33
A60: BERMEJO SANZ PALOMA | B60: BERMEJO SANZ | C60: PALOMA | D60: =IF(COUNTIF(General!A:BN,A60)>0,"Sí está","No está") -> Sí está | E60: Recorrido largo 18Km | F60: ADULTOS FEDERADOS | G60: 24 | H60: Paloma | I60: Bermejo Sanz | J60: 33
A61: BERNABE GAJON EDUARDO | B61: BERNABE GAJON | C61: EDUARDO | D61: =IF(COUNTIF(General!A:BN,A61)>0,"Sí está","No está") -> Sí está | E61: Recorrido largo 18Km | F61: ADULTOS NO FEDERADOS | G61: 27 | H61: Eduardo | I61: Bernabe Gajon | J61: 33
A62: BERNAD PELEGRIN MARIA JESUS | B62: BERNAD PELEGRIN | C62: MARIA JESUS | D62: =IF(COUNTIF(General!A:BN,A62)>0,"Sí está","No está") -> Sí está | E62: Recorrido largo 18Km | F62: ADULTOS FEDERADOS | G62: 22 | H62: Maria Jesus | I62: Bernad Pelegrin | J62: 33
A63: BESCOS BIEL MARISOL | B63: BESCOS BIEL | C63: MARISOL | D63: =IF(COUNTIF(General!A:BN,A63)>0,"Sí está","No está") -> Sí está | E63: Recorrido largo 18Km | F63: ADULTOS NO FEDERADOS | G63: 25 | H63: MARISOL | I63: BESCOS BIEL | J63: 33
A64: BJERKNESS KRISTIAN | B64: BJERKNESS | C64: KRISTIAN | D64: =IF(COUNTIF(General!A:BN,A64)>0,"Sí está","No está") -> Sí está | E64: Recorrido largo 18Km | F64: ADULTOS NO FEDERADOS | G64: 25 | H64: Kristian | I64: Bjerkness | J64: 33
A65: BLASCO AZNAR ANA | B65: BLASCO AZNAR | C65: ANA | D65: =IF(COUNTIF(General!A:BN,A65)>0,"Sí está","No está") -> Sí está | E65: Recorrido largo 18Km | F65: ADULTOS NO FEDERADOS | G65: 25 | H65: Ana | I65: Blasco Aznar | J65: 33
A66: BUENO SEGURA CARLOS | B66: BUENO SEGURA | C66: CARLOS | D66: =IF(COUNTIF(General!A:BN,A66)>0,"Sí está","No está") -> Sí está | E66: Recorrido largo 18Km | F66: ADULTOS NO FEDERADOS | G66: 25 | H66: Carlos | I66: Bueno Segura | J66: 33
A67: BURRIEL CANTISANO DAVID | B67: BURRIEL CANTISANO | C67: DAVID | D67: =IF(COUNTIF(General!A:BN,A67)>0,"Sí está","No está") -> Sí está | E67: Recorrido largo 18Km | F67: ADULTOS FEDERADOS | G67: 24 | H67: David | I67: Burriel Cantisano | J67: 33
A68: CABEZA DURAN MARIA ISABEL | B68: CABEZA DURAN | C68: MARIA ISABEL | D68: =IF(COUNTIF(General!A:BN,A68)>0,"Sí está","No está") -> Sí está | E68: Recorrido corto 12Km | F68: ADULTOS NO FEDERADOS | G68: 25 | H68: MARIA ISABEL | I68: CABEZA DURAN | J68: 27
A69: =UPPER(CONCATENATE(I69," ",H69)) -> CALLAU SANAGUSTIN RAFAEL | B69: =UPPER(I69) -> CALLAU SANAGUSTIN | C69: =UPPER(H69) -> RAFAEL | D69: =IF(COUNTIF(General!A:BN,A69)>0,"Sí está","No está") -> Sí está | E69: Recorrido largo 18Km | F69: ADULTOS FEDERADOS | G69: 22 | H69: RAFAEL | I69: CALLAU SANAGUSTIN | J69: 33
A70: CANDADO LAJUSTICIA MARIA DEL CARMEN | B70: CANDADO LAJUSTICIA | C70: MARIA DEL CARMEN | D70: =IF(COUNTIF(General!A:BN,A70)>0,"Sí está","No está") -> Sí está | E70: Recorrido largo 18Km | F70: ADULTOS NO FEDERADOS | G70: 25 | H70: Maria del Carmen | I70: Candado Lajusticia | J70: 33
A71: CANO ESCORIAZA ASUN | B71: CANO ESCORIAZA | C71: ASUN | D71: =IF(COUNTIF(General!A:BN,A71)>0,"Sí está","No está") -> Sí está | E71: Recorrido largo 18Km | F71: ADULTOS NO FEDERADOS | G71: 25 | H71: ASUN | I71: CANO ESCORIAZA | J71: 33
A72: CANTARERO SERVER XARO | B72: CANTARERO SERVER | C72: XARO | D72: =IF(COUNTIF(General!A:BN,A72)>0,"Sí está","No está") -> Sí está | E72: Recorrido largo 18Km | F72: ADULTOS FEDERADOS | G72: 22 | H72: Xaro | I72: cantarero server | J72: 33
A73: CAPITAN JESUS | B73: CAPITAN | C73: JESUS | D73: =IF(COUNTIF(General!A:BN,A73)>0,"Sí está","No está") -> Sí está | E73: Recorrido corto 12Km | F73: ADULTOS NO FEDERADOS | G73: 25 | H73: JESUS | I73: CAPITAN | J73: 27
A74: CARRASQUER LAS MARI CARMEN | B74: CARRASQUER LAS | C74: MARI CARMEN | D74: =IF(COUNTIF(General!A:BN,A74)>0,"Sí está","No está") -> Sí está | E74: Recorrido corto 12Km | F74: ADULTOS NO FEDERADOS | G74: 25 | H74: Mari Carmen | I74: Carrasquer Las | J74: 27
A75: CASERO CASERO CARMEN | B75: CASERO CASERO | C75: CARMEN | D75: =IF(COUNTIF(General!A:BN,A75)>0,"Sí está","No está") -> Sí está | E75: Recorrido largo 18Km | F75: ADULTOS NO FEDERADOS | G75: 25 | H75: carmen | I75: casero casero | J75: 33
A76: CASTAN ROMEO ESTEFANIA | B76: CASTAN ROMEO | C76: ESTEFANIA | D76: =IF(COUNTIF(General!A:BN,A76)>0,"Sí está","No está") -> Sí está | E76: Recorrido largo 18Km | F76: ADULTOS NO FEDERADOS | G76: 25 | H76: Estefania | I76: Castan Romeo | J76: 33
A77: CASTELLANO LAFUENTE LUIS ALFONSO | B77: CASTELLANO LAFUENTE | C77: LUIS ALFONSO | D77: =IF(COUNTIF(General!A:BN,A77)>0,"Sí está","No está") -> Sí está | E77: Recorrido corto 12Km | F77: ADULTOS NO FEDERADOS | G77: 25 | H77: Luis Alfonso | I77: Castellano Lafuente | J77: 27
A78: CASTILLON ABENIA BLANCA | B78: CASTILLON ABENIA | C78: BLANCA | D78: =IF(COUNTIF(General!A:BN,A78)>0,"Sí está","No está") -> Sí está | E78: Recorrido largo 18Km | F78: ADULTOS FEDERADOS | G78: 22 | H78: Blanca | I78: Castillon Abenia | J78: 33
A79: CATANO NELLY | B79: CATANO | C79: NELLY | D79: =IF(COUNTIF(General!A:BN,A79)>0,"Sí está","No está") -> Sí está | E79: Recorrido largo 18Km | F79: ADULTOS NO FEDERADOS | G79: 25 | H79: Nelly | I79: Catano | J79: 33
A80: CEAMANOS DIAZ ROSA PILAR | B80: CEAMANOS DIAZ | C80: ROSA PILAR | D80: =IF(COUNTIF(General!A:BN,A80)>0,"Sí está","No está") -> Sí está | E80: Recorrido largo 18Km | F80: ADULTOS NO FEDERADOS | G80: 25 | H80: Rosa Pilar | I80: Ceamanos Diaz | J80: 33
A81: CEBAMANOS GOMEZ MANUELA | B81: CEBAMANOS GOMEZ | C81: MANUELA | D81: =IF(COUNTIF(General!A:BN,A81)>0,"Sí está","No está") -> Sí está | E81: Recorrido corto 12Km | F81: ADULTOS NO FEDERADOS | G81: 25 | H81: MANUELA | I81: CEBAMANOS GOMEZ | J81: 27
A82: CEBRIAN DE BUEN MARIA JESUS | B82: CEBRIAN DE BUEN | C82: MARIA JESUS | D82: =IF(COUNTIF(General!A:BN,A82)>0,"Sí está","No está") -> Sí está | E82: Recorrido largo 18Km | F82: ADULTOS NO FEDERADOS | G82: 27 | H82: Maria Jesus | I82: Cebrian de Buen | J82: 33
A83: CHIC CIPRES JESUS | B83: CHIC CIPRES | C83: JESUS | D83: =IF(COUNTIF(General!A:BN,A83)>0,"Sí está","No está") -> Sí está | E83: Recorrido largo 18Km | F83: ADULTOS NO FEDERADOS | G83: 27 | H83: JESUS | I83: CHIC CIPRES | J83: 33
A84: CINTO PALACIN JULIA | B84: CINTO PALACIN | C84: JULIA | D84: =IF(COUNTIF(General!A:BN,A84)>0,"Sí está","No está") -> Sí está | E84: Recorrido largo 18Km | F84: ADULTOS NO FEDERADOS | G84: 25 | H84: Julia | I84: Cinto palacin | J84: 33
A85: CLAVERIA CINTORA MARIA ISABEL | B85: CLAVERIA CINTORA | C85: MARIA ISABEL | D85: =IF(COUNTIF(General!A:BN,A85)>0,"Sí está","No está") -> Sí está | E85: Recorrido corto 12Km | F85: ADULTOS NO FEDERADOS | G85: 25 | H85: Maria Isabel | I85: Claveria Cintora | J85: 27
A86: CLEMENTE REY PATRICIA | B86: CLEMENTE REY | C86: PATRICIA | D86: =IF(COUNTIF(General!A:BN,A86)>0,"Sí está","No está") -> Sí está | E86: Recorrido largo 18Km | F86: ADULTOS NO FEDERADOS | G86: 25 | H86: Patricia | I86: Clemente Rey | J86: 33
A87: CLIMENTE MARECA ALBERTO | B87: CLIMENTE MARECA | C87: ALBERTO | D87: =IF(COUNTIF(General!A:BN,A87)>0,"Sí está","No está") -> Sí está | E87: Recorrido corto 12Km | F87: ADULTOS NO FEDERADOS | G87: 25 | H87: Alberto | I87: climente mareca | J87: 27
A88: CONCHESO SANTA TERESA RAUL | B88: CONCHESO SANTA TERESA | C88: RAUL | D88: =IF(COUNTIF(General!A:BN,A88)>0,"Sí está","No está") -> Sí está | E88: Recorrido largo 18Km | F88: ADULTOS FEDERADOS | G88: 22 | H88: Raul | I88: Concheso Santa Teresa | J88: 33
A89: CONEJERO RODRIGUEZ PEDRO JOSE | B89: CONEJERO RODRIGUEZ | C89: PEDRO JOSE | D89: =IF(COUNTIF(General!A:BN,A89)>0,"Sí está","No está") -> Sí está | E89: Recorrido corto 12Km | F89: ADULTOS NO FEDERADOS | G89: 25 | H89: PEDRO JOSE | I89: CONEJERO RODRIGUEZ | J89: 27
A90: CORRAL UBIETO YOLANDA | B90: CORRAL UBIETO | C90: YOLANDA | D90: =IF(COUNTIF(General!A:BN,A90)>0,"Sí está","No está") -> Sí está | E90: Recorrido largo 18Km | F90: ADULTOS FEDERADOS | G90: 22 | H90: Yolanda | I90: Corral Ubieto | J90: 33
A91: CRUZ JEREZ DANIEL | B91: CRUZ JEREZ | C91: DANIEL | D91: =IF(COUNTIF(General!A:BN,A91)>0,"Sí está","No está") -> Sí está | E91: Recorrido corto 12Km | F91: MENORES DE 7 ANOS (INSCRIPCION GRATUITA) | G91: 0 | H91: DANIEL | I91: CRUZ JEREZ | J91: 27
A92: CRUZ JEREZ SANDRA YORKENY | B92: CRUZ JEREZ | C92: SANDRA YORKENY | D92: =IF(COUNTIF(General!A:BN,A92)>0,"Sí está","No está") -> Sí está | E92: Recorrido corto 12Km | F92: ADULTOS NO FEDERADOS | G92: 25 | H92: SANDRA YORKENY | I92: CRUZ JEREZ | J92: 27
A93: CUBERO ARNAUDAS ANTONIO | B93: CUBERO ARNAUDAS | C93: ANTONIO | D93: =IF(COUNTIF(General!A:BN,A93)>0,"Sí está","No está") -> Sí está | E93: Recorrido corto 12Km | F93: ADULTOS NO FEDERADOS | G93: 25 | H93: ANTONIO | I93: CUBERO ARNAUDAS | J93: 27
A94: DAL AZNAR SERCHIO | B94: DAL AZNAR | C94: SERCHIO | D94: =IF(COUNTIF(General!A:BN,A94)>0,"Sí está","No está") -> Sí está | E94: Recorrido largo 18Km | F94: ADULTOS FEDERADOS | G94: 24 | H94: Serchio | I94: Dal Aznar | J94: 33
A95: DEL RIO MARTIN AGUSTIN | B95: DEL RIO MARTIN | C95: AGUSTIN | D95: =IF(COUNTIF(General!A:BN,A95)>0,"Sí está","No está") -> Sí está | E95: Recorrido largo 18Km | F95: ADULTOS FEDERADOS | G95: 22 | H95: Agustin | I95: Del Rio Martin | J95: 33
A96: DEL VALLE PICATOSTE ANA MARIA | B96: DEL VALLE PICATOSTE | C96: ANA MARIA | D96: =IF(COUNTIF(General!A:BN,A96)>0,"Sí está","No está") -> Sí está | E96: Recorrido corto 12Km | F96: ADULTOS FEDERADOS | G96: 24 | H96: Ana Maria | I96: Del Valle Picatoste | J96: 27
A97: DELGADO FRANCISCO | B97: DELGADO | C97: FRANCISCO | D97: =IF(COUNTIF(General!A:BN,A97)>0,"Sí está","No está") -> Sí está | E97: Recorrido corto 12Km | F97: ADULTOS NO FEDERADOS | G97: 27 | H97: Francisco | I97: Delgado | J97: 27
A98: DIAZ LORENZO JESUS | B98: DIAZ LORENZO | C98: JESUS | D98: =IF(COUNTIF(General!A:BN,A98)>0,"Sí está","No está") -> Sí está | E98: Recorrido corto 12Km | F98: ADULTOS NO FEDERADOS | G98: 25 | H98: Jesus | I98: Diaz Lorenzo | J98: 27
A99: DIESTE AISA MARIA ASUNCION | B99: DIESTE AISA | C99: MARIA ASUNCION | D99: =IF(COUNTIF(General!A:BN,A99)>0,"Sí está","No está") -> Sí está | E99: Recorrido largo 18Km | F99: ADULTOS FEDERADOS | G99: 22 | H99: MARIA ASUNCION | I99: DIESTE AISA | J99: 33
A100: DIEZ CATALAN MARIA JOSEFA | B100: DIEZ CATALAN | C100: MARIA JOSEFA | D100: =IF(COUNTIF(General!A:BN,A100)>0,"Sí está","No está") -> Sí está | E100: Recorrido largo 18Km | F100: ACOMPANANTE (DESAYUNO, BARRA LIBRE Y COMIDA) | G100: 17 | H100: Maria Josefa | I100: Diez Catalan | J100: 33
A101: DOCON BLASCO PASCUALA | B101: DOCON BLASCO | C101: PASCUALA | D101: =IF(COUNTIF(General!A:BN,A101)>0,"Sí está","No está") -> Sí está | E101: Recorrido largo 18Km | F101: ADULTOS FEDERADOS | G101: 22 | H101: Pascuala | I101: Docon Blasco | J101: 33
A102: DOMINGO CADENA TERESA | B102: DOMINGO CADENA | C102: TERESA | D102: =IF(COUNTIF(General!A:BN,A102)>0,"Sí está","No está") -> Sí está | E102: Recorrido largo 18Km | F102: ADULTOS FEDERADOS | G102: 24 | H102: Teresa | I102: Domingo Cadena | J102: 33
A103: ENCISO VELILLA MARIA JOSE | B103: ENCISO VELILLA | C103: MARIA JOSE | D103: =IF(COUNTIF(General!A:BN,A103)>0,"Sí está","No está") -> Sí está | E103: Recorrido largo 18Km | F103: ADULTOS FEDERADOS | G103: 24 | H103: Maria Jose | I103: Enciso Velilla | J103: 33
A104: ESCAR NASARRE JAVIER | B104: ESCAR NASARRE | C104: JAVIER | D104: =IF(COUNTIF(General!A:BN,A104)>0,"Sí está","No está") -> Sí está | E104: Recorrido largo 18Km | F104: ADULTOS FEDERADOS | G104: 24 | H104: Javier | I104: Escar Nasarre | J104: 33
A105: ESCARTIN CLAVER JESUS | B105: ESCARTIN CLAVER | C105: JESUS | D105: =IF(COUNTIF(General!A:BN,A105)>0,"Sí está","No está") -> Sí está | E105: Recorrido largo 18Km | F105: ADULTOS FEDERADOS | G105: 22 | H105: Jesus | I105: Escartin claver | J105: 33
A106: ESPIERREZ COR JESUS | B106: ESPIERREZ COR | C106: JESUS | D106: =IF(COUNTIF(General!A:BN,A106)>0,"Sí está","No está") -> Sí está | E106: Recorrido largo 18Km | F106: ADULTOS NO FEDERADOS | G106: 27 | H106: Jesus | I106: Espierrez Cor | J106: 33
A107: ESPINOSA SANCHEZ IRIS THALIA | B107: ESPINOSA SANCHEZ | C107: IRIS THALIA | D107: =IF(COUNTIF(General!A:BN,A107)>0,"Sí está","No está") -> Sí está | E107: Recorrido largo 18Km | F107: ADULTOS NO FEDERADOS | G107: 25 | H107: Iris Thalia | I107: Espinosa Sanchez | J107: 33
A108: ESTACHO VINUE Mª LUISA | B108: ESTACHO VINUE | C108: Mª LUISA | D108: =IF(COUNTIF(General!A:BN,A108)>0,"Sí está","No está") -> Sí está | E108: Recorrido largo 18Km | F108: ADULTOS NO FEDERADOS | G108: 25 | H108: Mª LUISA | I108: ESTACHO VINUE | J108: 33
A109: ESTEBAN DANIEL | B109: ESTEBAN | C109: DANIEL | D109: =IF(COUNTIF(General!A:BN,A109)>0,"Sí está","No está") -> Sí está | E109: Recorrido largo 18Km | F109: ADULTOS SOCIOS DE CD PADELANTE Y PENISTAS AYERBE | G109: 24 | H109: Daniel | I109: Esteban | J109: 33
A110: ESTELLA SANZ JAVIER | B110: ESTELLA SANZ | C110: JAVIER | D110: =IF(COUNTIF(General!A:BN,A110)>0,"Sí está","No está") -> Sí está | E110: Recorrido corto 12Km | F110: ADULTOS NO FEDERADOS | G110: 25 | H110: Javier | I110: Estella Sanz | J110: 27
A111: FAIST MARY | B111: FAIST | C111: MARY | D111: =IF(COUNTIF(General!A:BN,A111)>0,"Sí está","No está") -> Sí está | E111: Recorrido largo 18Km | F111: ADULTOS NO FEDERADOS | G111: 27 | H111: Mary | I111: Faist | J111: 33
A112: FAJARDO MARTA | B112: FAJARDO | C112: MARTA | D112: =IF(COUNTIF(General!A:BN,A112)>0,"Sí está","No está") -> Sí está | E112: Recorrido largo 18Km | F112: ADULTOS NO FEDERADOS | G112: 25 | H112: Marta | I112: Fajardo | J112: 33
A113: FELIPE RUESCA JOSE MARIA | B113: FELIPE RUESCA | C113: JOSE MARIA | D113: =IF(COUNTIF(General!A:BN,A113)>0,"Sí está","No está") -> Sí está | E113: Recorrido largo 18Km | F113: ADULTOS FEDERADOS | G113: 22 | H113: Jose Maria | I113: Felipe Ruesca | J113: 33
A114: FERNANDEZ DOMINGUEZ SANDRA | B114: FERNANDEZ DOMINGUEZ | C114: SANDRA | D114: =IF(COUNTIF(General!A:BN,A114)>0,"Sí está","No está") -> Sí está | E114: Recorrido largo 18Km | F114: ADULTOS NO FEDERADOS | G114: 25 | H114: Sandra | I114: Fernandez Dominguez | J114: 33
A115: FERRANDEZ PARRA AMELIA | B115: FERRANDEZ PARRA | C115: AMELIA | D115: =IF(COUNTIF(General!A:BN,A115)>0,"Sí está","No está") -> Sí está | E115: Recorrido largo 18Km | F115: ADULTOS NO FEDERADOS | G115: 25 | H115: AMELIA | I115: FERRANDEZ PARRA | J115: 33
A116: FERRER SALILLAS JOSE Mª | B116: FERRER SALILLAS | C116: JOSE Mª | D116: =IF(COUNTIF(General!A:BN,A116)>0,"Sí está","No está") -> Sí está | E116: Recorrido corto 12Km | F116: ADULTOS FEDERADOS | G116: 24 | H116: Jose Mª | I116: FERRER SALILLAS | J116: 27
A117: FERRER GRACIA BEATRIZ | B117: FERRER GRACIA | C117: BEATRIZ | D117: =IF(COUNTIF(General!A:BN,A117)>0,"Sí está","No está") -> Sí está | E117: Recorrido largo 18Km | F117: ADULTOS NO FEDERADOS | G117: 27 | H117: BEATRIZ | I117: FERRER GRACIA | J117: 33
A118: FERRER YUS ANGEL | B118: FERRER YUS | C118: ANGEL | D118: =IF(COUNTIF(General!A:BN,A118)>0,"Sí está","No está") -> Sí está | E118: Recorrido corto 12Km | F118: ADULTOS NO FEDERADOS | G118: 25 | H118: Angel | I118: Ferrer Yus | J118: 27
A119: FERRERO CARMEN | B119: FERRERO | C119: CARMEN | D119: =IF(COUNTIF(General!A:BN,A119)>0,"Sí está","No está") -> Sí está | E119: Recorrido corto 12Km | F119: ADULTOS FEDERADOS | G119: 22 | H119: Carmen | I119: Ferrero | J119: 27
A120: FIGUER ALDANA MIGUEL ANGEL | B120: FIGUER ALDANA | C120: MIGUEL ANGEL | D120: =IF(COUNTIF(General!A:BN,A120)>0,"Sí está","No está") -> Sí está | E120: Recorrido largo 18Km | F120: ADULTOS FEDERADOS | G120: 22 | H120: Miguel Angel | I120: Figuer Aldana | J120: 33
A121: FLORES MENDOZA MARIA ASUNCION | B121: FLORES MENDOZA | C121: MARIA ASUNCION | D121: =IF(COUNTIF(General!A:BN,A121)>0,"Sí está","No está") -> Sí está | E121: Recorrido largo 18Km | F121: ADULTOS NO FEDERADOS | G121: 25 | H121: Maria Asuncion | I121: Flores Mendoza | J121: 33
A122: FOLLOS AGORRETA CARLOS | B122: FOLLOS AGORRETA | C122: CARLOS | D122: =IF(COUNTIF(General!A:BN,A122)>0,"Sí está","No está") -> Sí está | E122: Recorrido largo 18Km | F122: ADULTOS FEDERADOS | G122: 22 | H122: CARLOS | I122: FOLLOS AGORRETA | J122: 33
A123: FONTANA ASCASO LOURDES | B123: FONTANA ASCASO | C123: LOURDES | D123: =IF(COUNTIF(General!A:BN,A123)>0,"Sí está","No está") -> Sí está | E123: Recorrido largo 18Km | F123: ADULTOS NO FEDERADOS | G123: 25 | H123: Lourdes | I123: Fontana Ascaso | J123: 33
A124: FORCANO RUIZ JOSE MANUEL | B124: FORCANO RUIZ | C124: JOSE MANUEL | D124: =IF(COUNTIF(General!A:BN,A124)>0,"Sí está","No está") -> Sí está | E124: Recorrido largo 18Km | F124: ADULTOS NO FEDERADOS | G124: 25 | H124: Jose Manuel | I124: Forcano Ruiz | J124: 33
A125: FORTACIN LERA JAVIER | B125: FORTACIN LERA | C125: JAVIER | D125: =IF(COUNTIF(General!A:BN,A125)>0,"Sí está","No está") -> Sí está | E125: Recorrido corto 12Km | F125: ADULTOS NO FEDERADOS | G125: 25 | H125: JAVIER | I125: FORTACIN LERA | J125: 27
A126: FRANCES BENITO ROSANA | B126: FRANCES BENITO | C126: ROSANA | D126: =IF(COUNTIF(General!A:BN,A126)>0,"Sí está","No está") -> Sí está | E126: Recorrido corto 12Km | F126: ADULTOS NO FEDERADOS | G126: 25 | H126: Rosana | I126: Frances Benito | J126: 27
A127: FRANCO NUNO MARIAN | B127: FRANCO NUNO | C127: MARIAN | D127: =IF(COUNTIF(General!A:BN,A127)>0,"Sí está","No está") -> Sí está | E127: Recorrido corto 12Km | F127: ADULTOS NO FEDERADOS | G127: 25 | H127: MARIAN | I127: FRANCO NUNO | J127: 27
A128: FUMANAL CABRERO CLARA | B128: FUMANAL CABRERO | C128: CLARA | D128: =IF(COUNTIF(General!A:BN,A128)>0,"Sí está","No está") -> Sí está | E128: Recorrido corto 12Km | F128: ADULTOS NO FEDERADOS | G128: 25 | H128: Clara | I128: Fumanal Cabrero | J128: 27
A129: FUSTA SOLSONA FRANCISCO | B129: FUSTA SOLSONA | C129: FRANCISCO | D129: =IF(COUNTIF(General!A:BN,A129)>0,"Sí está","No está") -> Sí está | E129: Recorrido largo 18Km | F129: ADULTOS NO FEDERADOS | G129: 25 | H129: FRANCISCO | I129: FUSTA SOLSONA | J129: 33
A130: GABAS FUMANAL ALFREDO | B130: GABAS FUMANAL | C130: ALFREDO | D130: =IF(COUNTIF(General!A:BN,A130)>0,"Sí está","No está") -> Sí está | E130: Recorrido largo 18Km | F130: ADULTOS FEDERADOS | G130: 22 | H130: ALFREDO | I130: GABAS FUMANAL | J130: 33
A131: GABAS MODREGO JESUS | B131: GABAS MODREGO | C131: JESUS | D131: =IF(COUNTIF(General!A:BN,A131)>0,"Sí está","No está") -> Sí está | E131: Recorrido corto 12Km | F131: ADULTOS NO FEDERADOS | G131: 25 | H131: JESUS | I131: GABAS MODREGO | J131: 27
A132: GALINDO FERNANDEZ-CAVADA SONSOLES | B132: GALINDO FERNANDEZ-CAVADA | C132: SONSOLES | D132: =IF(COUNTIF(General!A:BN,A132)>0,"Sí está","No está") -> Sí está | E132: Recorrido largo 18Km | F132: ADULTOS NO FEDERADOS | G132: 27 | H132: Sonsoles | I132: Galindo Fernandez-Cavada | J132: 33
A133: =UPPER(CONCATENATE(I133," ",H133)) -> GARCES TURMO MIGUEL ANGEL | B133: =UPPER(I133) -> GARCES TURMO | C133: =UPPER(H133) -> MIGUEL ANGEL | D133: =IF(COUNTIF(General!A:BN,A133)>0,"Sí está","No está") -> Sí está | E133: Recorrido corto 12Km | F133: ADULTOS NO FEDERADOS | G133: 25 | H133: Miguel Angel | I133: Garces Turmo | J133: 27
A134: GARCIA FORCANO MARCOS | B134: GARCIA FORCANO | C134: MARCOS | D134: =IF(COUNTIF(General!A:BN,A134)>0,"Sí está","No está") -> Sí está | E134: Recorrido largo 18Km | F134: ADULTOS NO FEDERADOS | G134: 25 | H134: MARCOS | I134: GARCIA FORCANO | J134: 33
A135: GARCIA FRANCO PILI | B135: GARCIA FRANCO | C135: PILI | D135: =IF(COUNTIF(General!A:BN,A135)>0,"Sí está","No está") -> Sí está | E135: Recorrido corto 12Km | F135: ADULTOS NO FEDERADOS | G135: 25 | H135: Pili | I135: Garcia franco | J135: 27
A136: GARCIA LACASTA LUIS ALBERTO | B136: GARCIA LACASTA | C136: LUIS ALBERTO | D136: =IF(COUNTIF(General!A:BN,A136)>0,"Sí está","No está") -> Sí está | E136: Recorrido largo 18Km | F136: ADULTOS NO FEDERADOS | G136: 25 | H136: Luis Alberto | I136: Garcia Lacasta | J136: 33
A137: GARCIA NAVAS PATRICIA | B137: GARCIA NAVAS | C137: PATRICIA | D137: =IF(COUNTIF(General!A:BN,A137)>0,"Sí está","No está") -> Sí está | E137: Recorrido largo 18Km | F137: ADULTOS FEDERADOS | G137: 22 | H137: PATRICIA | I137: GARCIA NAVAS | J137: 33
A138: GARCIA NAVAS VICTOR ANTONIO | B138: GARCIA NAVAS | C138: VICTOR ANTONIO | D138: =IF(COUNTIF(General!A:BN,A138)>0,"Sí está","No está") -> Sí está | E138: Recorrido corto 12Km | F138: ADULTOS NO FEDERADOS | G138: 25 | H138: VICTOR ANTONIO | I138: GARCIA NAVAS | J138: 27
A139: GARCIA PEREZ MARIA ANGELES | B139: GARCIA PEREZ | C139: MARIA ANGELES | D139: =IF(COUNTIF(General!A:BN,A139)>0,"Sí está","No está") -> Sí está | E139: Recorrido largo 18Km | F139: ADULTOS FEDERADOS | G139: 22 | H139: MARIA ANGELES | I139: GARCIA PEREZ | J139: 33
A140: GARMENDIA DE MOLINA ALFONSO | B140: GARMENDIA DE MOLINA | C140: ALFONSO | D140: =IF(COUNTIF(General!A:BN,A140)>0,"Sí está","No está") -> Sí está | E140: Recorrido largo 18Km | F140: ADULTOS NO FEDERADOS | G140: 25 | H140: Alfonso | I140: Garmendia de molina | J140: 33
A141: GARRIDO LOSTALE MARIA JOSE | B141: GARRIDO LOSTALE | C141: MARIA JOSE | D141: =IF(COUNTIF(General!A:BN,A141)>0,"Sí está","No está") -> Sí está | E141: Recorrido largo 18Km | F141: ADULTOS FEDERADOS | G141: 22 | H141: Maria Jose | I141: Garrido Lostale | J141: 33
A142: GAYAN BUENO MARIAN | B142: GAYAN BUENO | C142: MARIAN | D142: =IF(COUNTIF(General!A:BN,A142)>0,"Sí está","No está") -> Sí está | E142: Recorrido corto 12Km | F142: ADULTOS FEDERADOS | G142: 22 | H142: Marian | I142: Gayan Bueno | J142: 27
A143: GIL AREJULA SILVIA | B143: GIL AREJULA | C143: SILVIA | D143: =IF(COUNTIF(General!A:BN,A143)>0,"Sí está","No está") -> Sí está | E143: Recorrido largo 18Km | F143: ADULTOS FEDERADOS | G143: 22 | H143: SILVIA | I143: GIL AREJULA | J143: 33
A144: GIL MARTINEZ EDUARDO JOSE JAVIER | B144: GIL MARTINEZ | C144: EDUARDO JOSE JAVIER | D144: =IF(COUNTIF(General!A:BN,A144)>0,"Sí está","No está") -> Sí está | E144: Recorrido largo 18Km | F144: ADULTOS FEDERADOS | G144: 22 | H144: EDUARDO JOSE JAVIER | I144: GIL MARTINEZ | J144: 33
A145: GIMENO ABADIAS JOSE ANTONIO | B145: GIMENO ABADIAS | C145: JOSE ANTONIO | D145: =IF(COUNTIF(General!A:BN,A145)>0,"Sí está","No está") -> Sí está | E145: Recorrido largo 18Km | F145: ADULTOS NO FEDERADOS | G145: 25 | H145: Jose antonio | I145: Gimeno Abadias | J145: 33
A146: GOBANTES ASCASO PABLO | B146: GOBANTES ASCASO | C146: PABLO | D146: =IF(COUNTIF(General!A:BN,A146)>0,"Sí está","No está") -> Sí está | E146: Recorrido largo 18Km | F146: ADULTOS NO FEDERADOS | G146: 25 | H146: Pablo | I146: Gobantes Ascaso | J146: 33
A147: GOBANTES BANDRES JUAN | B147: GOBANTES BANDRES | C147: JUAN | D147: =IF(COUNTIF(General!A:BN,A147)>0,"Sí está","No está") -> Sí está | E147: Recorrido largo 18Km | F147: ADULTOS NO FEDERADOS | G147: 25 | H147: Juan | I147: Gobantes Bandres | J147: 33
A148: GOMEZ ARIAS JAVIER | B148: GOMEZ ARIAS | C148: JAVIER | D148: =IF(COUNTIF(General!A:BN,A148)>0,"Sí está","No está") -> Sí está | E148: Recorrido corto 12Km | F148: ADULTOS NO FEDERADOS | G148: 25 | H148: Javier | I148: Gomez Arias | J148: 27
A149: GOMEZ CAJAL ANA BELEN | B149: GOMEZ CAJAL | C149: ANA BELEN | D149: =IF(COUNTIF(General!A:BN,A149)>0,"Sí está","No está") -> Sí está | E149: Recorrido largo 18Km | F149: ADULTOS NO FEDERADOS | G149: 25 | H149: Ana Belen | I149: GOMEZ CAJAL | J149: 33
A150: GONZALEZ SORIANO ROSA MARIA | B150: GONZALEZ SORIANO | C150: ROSA MARIA | D150: =IF(COUNTIF(General!A:BN,A150)>0,"Sí está","No está") -> Sí está | E150: Recorrido largo 18Km | F150: ADULTOS FEDERADOS | G150: 22 | H150: Rosa Maria | I150: Gonzalez soriano | J150: 33
A151: GRACIA PILAR | B151: GRACIA | C151: PILAR | D151: =IF(COUNTIF(General!A:BN,A151)>0,"Sí está","No está") -> Sí está | E151: Recorrido corto 12Km | F151: ADULTOS NO FEDERADOS | G151: 25 | H151: Pilar | I151: Gracia | J151: 27
A152: GRACIA CARRO NACHO | B152: GRACIA CARRO | C152: NACHO | D152: =IF(COUNTIF(General!A:BN,A152)>0,"Sí está","No está") -> Sí está | E152: Recorrido corto 12Km | F152: ADULTOS NO FEDERADOS | G152: 25 | H152: NACHO | I152: GRACIA CARRO | J152: 27
A153: GRACIA GRACIA JORGE JESUS | B153: GRACIA GRACIA | C153: JORGE JESUS | D153: =IF(COUNTIF(General!A:BN,A153)>0,"Sí está","No está") -> Sí está | E153: Recorrido corto 12Km | F153: ADULTOS NO FEDERADOS | G153: 25 | H153: Jorge Jesus | I153: Gracia Gracia | J153: 27
A154: GRACIA GRACIA M CARMEN | B154: GRACIA GRACIA | C154: M CARMEN | D154: =IF(COUNTIF(General!A:BN,A154)>0,"Sí está","No está") -> Sí está | E154: Recorrido largo 18Km | F154: ADULTOS FEDERADOS | G154: 22 | H154: M Carmen | I154: Gracia Gracia | J154: 33
A155: GRACIA JOVEN GUILLEN | B155: GRACIA JOVEN | C155: GUILLEN | D155: =IF(COUNTIF(General!A:BN,A155)>0,"Sí está","No está") -> Sí está | E155: Recorrido corto 12Km | F155: ADULTOS NO FEDERADOS | G155: 25 | H155: GUILLEN | I155: GRACIA JOVEN | J155: 27
A156: GRACIA OLIVAN NIEVES | B156: GRACIA OLIVAN | C156: NIEVES | D156: =IF(COUNTIF(General!A:BN,A156)>0,"Sí está","No está") -> Sí está | E156: Recorrido corto 12Km | F156: ADULTOS NO FEDERADOS | G156: 25 | H156: NIEVES | I156: GRACIA OLIVAN | J156: 27
A157: GRACIA PERALTA JOSE MIGUEL | B157: GRACIA PERALTA | C157: JOSE MIGUEL | D157: =IF(COUNTIF(General!A:BN,A157)>0,"Sí está","No está") -> Sí está | E157: Recorrido largo 18Km | F157: ADULTOS FEDERADOS | G157: 22 | H157: Jose Miguel | I157: Gracia Peralta | J157: 33
A158: GRACIA SOLAESA PEDRO | B158: GRACIA SOLAESA | C158: PEDRO | D158: =IF(COUNTIF(General!A:BN,A158)>0,"Sí está","No está") -> Sí está | E158: Recorrido largo 18Km | F158: ADULTOS NO FEDERADOS | G158: 25 | H158: Pedro | I158: Gracia solaesa | J158: 33
A159: GRAN GIL ANGEL | B159: GRAN GIL | C159: ANGEL | D159: =IF(COUNTIF(General!A:BN,A159)>0,"Sí está","No está") -> Sí está | E159: Recorrido corto 12Km | F159: ADULTOS NO FEDERADOS | G159: 27 | H159: ANGEL | I159: GRAN GIL | J159: 27
A160: GRASA UBIETO ISMAEL | B160: GRASA UBIETO | C160: ISMAEL | D160: =IF(COUNTIF(General!A:BN,A160)>0,"Sí está","No está") -> Sí está | E160: Recorrido largo 18Km | F160: ACOMPANANTE (DESAYUNO, BARRA LIBRE Y COMIDA) | G160: 19 | H160: Ismael | I160: Grasa ubieto | J160: 33
A161: GUERRERO ALBA JAVIER | B161: GUERRERO ALBA | C161: JAVIER | D161: =IF(COUNTIF(General!A:BN,A161)>0,"Sí está","No está") -> Sí está | E161: Recorrido largo 18Km | F161: ADULTOS FEDERADOS | G161: 22 | H161: Javier | I161: Guerrero Alba | J161: 33
A162: GUERRI PIRACES ENRIQUE | B162: GUERRI PIRACES | C162: ENRIQUE | D162: =IF(COUNTIF(General!A:BN,A162)>0,"Sí está","No está") -> Sí está | E162: Recorrido largo 18Km | F162: ADULTOS FEDERADOS | G162: 24 | H162: ENRIQUE | I162: GUERRI PIRACES | J162: 33
A163: GUIRADO DIA CONSUELO | B163: GUIRADO DIA | C163: CONSUELO | D163: =IF(COUNTIF(General!A:BN,A163)>0,"Sí está","No está") -> Sí está | E163: Recorrido largo 18Km | F163: ADULTOS FEDERADOS | G163: 22 | H163: CONSUELO | I163: GUIRADO DIA | J163: 33
A164: GUMIEL MINANA SANTIAGO | B164: GUMIEL MINANA | C164: SANTIAGO | D164: =IF(COUNTIF(General!A:BN,A164)>0,"Sí está","No está") -> Sí está | E164: Recorrido largo 18Km | F164: ACOMPANANTE (DESAYUNO, BARRA LIBRE Y COMIDA) | G164: 17 | H164: Santiago | I164: Gumiel Minana | J164: 33
A165: GUSTRAM GONZALEZ PILAR | B165: GUSTRAM GONZALEZ | C165: PILAR | D165: =IF(COUNTIF(General!A:BN,A165)>0,"Sí está","No está") -> Sí está | E165: Recorrido corto 12Km | F165: ADULTOS FEDERADOS | G165: 24 | H165: Pilar | I165: Gustram Gonzalez | J165: 27
A166: HEREDIA OLMOS MARIA JESUS | B166: HEREDIA OLMOS | C166: MARIA JESUS | D166: =IF(COUNTIF(General!A:BN,A166)>0,"Sí está","No está") -> Sí está | E166: Recorrido corto 12Km | F166: ADULTOS NO FEDERADOS | G166: 27 | H166: Maria Jesus | I166: Heredia Olmos | J166: 27
A167: HERNANDEZ GARCIA SERGIO | B167: HERNANDEZ GARCIA | C167: SERGIO | D167: =IF(COUNTIF(General!A:BN,A167)>0,"Sí está","No está") -> Sí está | E167: Recorrido corto 12Km | F167: ADULTOS NO FEDERADOS | G167: 25 | H167: SERGIO | I167: HERNANDEZ GARCIA | J167: 27
A168: HERNANDEZ PANIELLO. SILVIA | B168: HERNANDEZ PANIELLO. | C168: SILVIA | D168: =IF(COUNTIF(General!A:BN,A168)>0,"Sí está","No está") -> Sí está | E168: Recorrido corto 12Km | F168: ADULTOS NO FEDERADOS | G168: 25 | H168: Silvia | I168: Hernandez Paniello. | J168: 27
A169: HINOJOSA SALINAS ISABEL | B169: HINOJOSA SALINAS | C169: ISABEL | D169: =IF(COUNTIF(General!A:BN,A169)>0,"Sí está","No está") -> Sí está | E169: Recorrido largo 18Km | F169: ACOMPANANTE (DESAYUNO, BARRA LIBRE Y COMIDA) | G169: 19 | H169: Isabel | I169: Hinojosa Salinas | J169: 33
A170: INGELMO CAMPO ISABEL | B170: INGELMO CAMPO | C170: ISABEL | D170: =IF(COUNTIF(General!A:BN,A170)>0,"Sí está","No está") -> Sí está | E170: Recorrido largo 18Km | F170: ADULTOS NO FEDERADOS | G170: 25 | H170: Isabel | I170: Ingelmo Campo | J170: 33
A171: ITURRALDE ALASTRUEY M.CARMEN | B171: ITURRALDE ALASTRUEY | C171: M.CARMEN | D171: =IF(COUNTIF(General!A:BN,A171)>0,"Sí está","No está") -> Sí está | E171: Recorrido corto 12Km | F171: ADULTOS NO FEDERADOS | G171: 27 | H171: M.CARMEN | I171: ITURRALDE ALASTRUEY | J171: 27
A172: JASO VILLA PILAR | B172: JASO VILLA | C172: PILAR | D172: =IF(COUNTIF(General!A:BN,A172)>0,"Sí está","No está") -> Sí está | E172: Recorrido corto 12Km | F172: ADULTOS NO FEDERADOS | G172: 25 | H172: Pilar | I172: Jaso Villa | J172: 27
A173: JOVEN CASAUCUA ELVIRA | B173: JOVEN CASAUCUA | C173: ELVIRA | D173: =IF(COUNTIF(General!A:BN,A173)>0,"Sí está","No está") -> Sí está | E173: Recorrido corto 12Km | F173: ADULTOS NO FEDERADOS | G173: 25 | H173: ELVIRA | I173: JOVEN CASAUCUA | J173: 27
A174: JULIAN DOMINGO MARCOS | B174: JULIAN DOMINGO | C174: MARCOS | D174: =IF(COUNTIF(General!A:BN,A174)>0,"Sí está","No está") -> Sí está | E174: Recorrido largo 18Km | F174: ADULTOS FEDERADOS | G174: 22 | H174: Marcos | I174: Julian Domingo | J174: 33
A175: JUSTE GRACIA MIGUEL | B175: JUSTE GRACIA | C175: MIGUEL | D175: =IF(COUNTIF(General!A:BN,A175)>0,"Sí está","No está") -> Sí está | E175: Recorrido largo 18Km | F175: ADULTOS NO FEDERADOS | G175: 27 | H175: Miguel | I175: Juste Gracia | J175: 33
A176: LACLAUSTRA TRULLEN ROSA | B176: LACLAUSTRA TRULLEN | C176: ROSA | D176: =IF(COUNTIF(General!A:BN,A176)>0,"Sí está","No está") -> Sí está | E176: Recorrido corto 12Km | F176: ADULTOS NO FEDERADOS | G176: 25 | H176: Rosa | I176: Laclaustra Trullen | J176: 27
A177: LADRERO LATAS JOAQUINA | B177: LADRERO LATAS | C177: JOAQUINA | D177: =IF(COUNTIF(General!A:BN,A177)>0,"Sí está","No está") -> Sí está | E177: Recorrido largo 18Km | F177: ADULTOS NO FEDERADOS | G177: 27 | H177: Joaquina | I177: Ladrero Latas | J177: 33
A178: LAFONTANA LATORRE CARLOS | B178: LAFONTANA LATORRE | C178: CARLOS | D178: =IF(COUNTIF(General!A:BN,A178)>0,"Sí está","No está") -> Sí está | E178: Recorrido corto 12Km | F178: ADULTOS SOCIOS DE CD PADELANTE Y PENISTAS AYERBE | G178: 24 | H178: CARLOS | I178: LAFONTANA LATORRE | J178: 27
A179: LAHUERTA GALLEGO JOSE MARIA | B179: LAHUERTA GALLEGO | C179: JOSE MARIA | D179: =IF(COUNTIF(General!A:BN,A179)>0,"Sí está","No está") -> Sí está | E179: Recorrido largo 18Km | F179: ADULTOS NO FEDERADOS | G179: 25 | H179: Jose Maria | I179: Lahuerta Gallego | J179: 33
A180: LAMANA VILLABONA MARGARITA | B180: LAMANA VILLABONA | C180: MARGARITA | D180: =IF(COUNTIF(General!A:BN,A180)>0,"Sí está","No está") -> Sí está | E180: Recorrido largo 18Km | F180: ADULTOS NO FEDERADOS | G180: 25 | H180: margarita | I180: lamana Villabona | J180: 33
A181: LANAS GONZALEZ JAVIER | B181: LANAS GONZALEZ | C181: JAVIER | D181: =IF(COUNTIF(General!A:BN,A181)>0,"Sí está","No está") -> Sí está | E181: Recorrido largo 18Km | F181: ADULTOS FEDERADOS | G181: 22 | H181: Javier | I181: Lanas Gonzalez | J181: 33
A182: LANGA LORENTE ELENA | B182: LANGA LORENTE | C182: ELENA | D182: =IF(COUNTIF(General!A:BN,A182)>0,"Sí está","No está") -> Sí está | E182: Recorrido largo 18Km | F182: ADULTOS FEDERADOS | G182: 22 | H182: Elena | I182: Langa Lorente | J182: 33
A183: LANGARITA BERCERO ROBERTO | B183: LANGARITA BERCERO | C183: ROBERTO | D183: =IF(COUNTIF(General!A:BN,A183)>0,"Sí está","No está") -> Sí está | E183: Recorrido largo 18Km | F183: ADULTOS FEDERADOS | G183: 24 | H183: Roberto | I183: Langarita Bercero | J183: 33
A184: LANGUIZ SALCEDO CASBAS | B184: LANGUIZ SALCEDO | C184: CASBAS | D184: =IF(COUNTIF(General!A:BN,A184)>0,"Sí está","No está") -> Sí está | E184: Recorrido corto 12Km | F184: ADULTOS NO FEDERADOS | G184: 27 | H184: CASBAS | I184: LANGUIZ SALCEDO | J184: 27
A185: LARDIES CARASOL ISIDRO | B185: LARDIES CARASOL | C185: ISIDRO | D185: =IF(COUNTIF(General!A:BN,A185)>0,"Sí está","No está") -> Sí está | E185: Recorrido largo 18Km | F185: ADULTOS FEDERADOS | G185: 24 | H185: ISIDRO | I185: LARDIES CARASOL | J185: 33
A186: LASAOSA LALAGUNA VICENTE | B186: LASAOSA LALAGUNA | C186: VICENTE | D186: =IF(COUNTIF(General!A:BN,A186)>0,"Sí está","No está") -> Sí está | E186: Recorrido largo 18Km | F186: ADULTOS NO FEDERADOS | G186: 25 | H186: Vicente | I186: Lasaosa Lalaguna | J186: 33
A187: LASTIESAS VALIENTE MARIA JOSE | B187: LASTIESAS VALIENTE | C187: MARIA JOSE | D187: =IF(COUNTIF(General!A:BN,A187)>0,"Sí está","No está") -> Sí está | E187: Recorrido largo 18Km | F187: ADULTOS NO FEDERADOS | G187: 25 | H187: MARIA JOSE | I187: LASTIESAS VALIENTE | J187: 33
A188: LATORRE RODRIGUEZ ARITZ | B188: LATORRE RODRIGUEZ | C188: ARITZ | D188: =IF(COUNTIF(General!A:BN,A188)>0,"Sí está","No está") -> Sí está | E188: Recorrido corto 12Km | F188: NINOS DE ENTRE 7 Y 13 ANOS NO FEDERADOS | G188: 16 | H188: Aritz | I188: Latorre Rodriguez | J188: 27
A189: LATORRE VILLANUEVA PEDRO JOSE | B189: LATORRE VILLANUEVA | C189: PEDRO JOSE | D189: =IF(COUNTIF(General!A:BN,A189)>0,"Sí está","No está") -> Sí está | E189: Recorrido corto 12Km | F189: ADULTOS FEDERADOS | G189: 22 | H189: Pedro Jose | I189: Latorre Villanueva | J189: 27
A190: LAZARO CONTAMINA SANTIAGO | B190: LAZARO CONTAMINA | C190: SANTIAGO | D190: =IF(COUNTIF(General!A:BN,A190)>0,"Sí está","No está") -> Sí está | E190: Recorrido corto 12Km | F190: ADULTOS FEDERADOS | G190: 22 | H190: Santiago | I190: Lazaro Contamina | J190: 27
A191: LEDESMA LACARTA JOSE ANTONIO | B191: LEDESMA LACARTA | C191: JOSE ANTONIO | D191: =IF(COUNTIF(General!A:BN,A191)>0,"Sí está","No está") -> Sí está | E191: Recorrido largo 18Km | F191: ADULTOS FEDERADOS | G191: 22 | H191: Jose Antonio | I191: Ledesma Lacarta | J191: 33
A192: LLORENTE SANCHEZ INMACULADA | B192: LLORENTE SANCHEZ | C192: INMACULADA | D192: =IF(COUNTIF(General!A:BN,A192)>0,"Sí está","No está") -> Sí está | E192: Recorrido corto 12Km | F192: ADULTOS FEDERADOS | G192: 22 | H192: Inmaculada | I192: Llorente Sanchez | J192: 27
A193: LLUCH SOLSONA OLIVIA | B193: LLUCH SOLSONA | C193: OLIVIA | D193: =IF(COUNTIF(General!A:BN,A193)>0,"Sí está","No está") -> Sí está | E193: Recorrido largo 18Km | F193: ADULTOS NO FEDERADOS | G193: 25 | H193: OLIVIA | I193: LLUCH SOLSONA | J193: 33
A194: LOBE VIDAL JOAQUIN | B194: LOBE VIDAL | C194: JOAQUIN | D194: =IF(COUNTIF(General!A:BN,A194)>0,"Sí está","No está") -> Sí está | E194: Recorrido corto 12Km | F194: ADULTOS FEDERADOS | G194: 24 | H194: JOAQUIN | I194: LOBE VIDAL | J194: 27
A195: LOPEZ SANCHO ISABEL | B195: LOPEZ SANCHO | C195: ISABEL | D195: =IF(COUNTIF(General!A:BN,A195)>0,"Sí está","No está") -> Sí está | E195: Recorrido corto 12Km | F195: ADULTOS NO FEDERADOS | G195: 25 | H195: ISABEL | I195: LOPEZ SANCHO | J195: 27
A196: LORDA BARRAGUER ALBERTO | B196: LORDA BARRAGUER | C196: ALBERTO | D196: =IF(COUNTIF(General!A:BN,A196)>0,"Sí está","No está") -> Sí está | E196: Recorrido corto 12Km | F196: ADULTOS NO FEDERADOS | G196: 25 | H196: Alberto | I196: Lorda Barraguer | J196: 27
A197: =UPPER(CONCATENATE(I197," ",H197)) -> LOZANO ESCOBEDO MARIO | B197: =UPPER(I197) -> LOZANO ESCOBEDO | C197: =UPPER(H197) -> MARIO | D197: =IF(COUNTIF(General!A:BN,A197)>0,"Sí está","No está") -> Sí está | E197: Recorrido largo 18Km | F197: ADULTOS FEDERADOS | G197: 22 | H197: Mario | I197: Lozano Escobedo | J197: 33
A198: LUENGO DOMINGO SALVADOR | B198: LUENGO DOMINGO | C198: SALVADOR | D198: =IF(COUNTIF(General!A:BN,A198)>0,"Sí está","No está") -> Sí está | E198: Recorrido largo 18Km | F198: ADULTOS FEDERADOS | G198: 22 | H198: Salvador | I198: Luengo Domingo | J198: 33
A199: MAIRAL CALLEN JUAN JOSE | B199: MAIRAL CALLEN | C199: JUAN JOSE | D199: =IF(COUNTIF(General!A:BN,A199)>0,"Sí está","No está") -> Sí está | E199: Recorrido largo 18Km | F199: ADULTOS FEDERADOS | G199: 22 | H199: Juan jose | I199: Mairal Callen | J199: 33
A200: MAIRAL HERREROS JUAN JOSE | B200: MAIRAL HERREROS | C200: JUAN JOSE | D200: =IF(COUNTIF(General!A:BN,A200)>0,"Sí está","No está") -> Sí está | E200: Recorrido corto 12Km | F200: ADULTOS FEDERADOS | G200: 22 | H200: Juan Jose | I200: Mairal Herreros | J200: 27
A201: MANERO ALASTRUEY SARA | B201: MANERO ALASTRUEY | C201: SARA | D201: =IF(COUNTIF(General!A:BN,A201)>0,"Sí está","No está") -> Sí está | E201: Recorrido largo 18Km | F201: ADULTOS NO FEDERADOS | G201: 25 | H201: Sara | I201: Manero Alastruey | J201: 33
A202: MARCEN MUNIO CELIA | B202: MARCEN MUNIO | C202: CELIA | D202: =IF(COUNTIF(General!A:BN,A202)>0,"Sí está","No está") -> Sí está | E202: Recorrido largo 18Km | F202: ADULTOS NO FEDERADOS | G202: 25 | H202: Celia | I202: Marcen Munio | J202: 33
... 158 more rows

Sheet Calendario_2025
A2: CALENDARIO DE ANDADAS POPULARES DE ARAGON 2025 | F2: Cambio de fecha respecto a la que figura en calendario | Q2: CUADRO DE PUNTUACIONES
A4: Nº | B4: 2025 | C4: ED. | D4: ANDADA | E4: ORGANIZADOR/ES | F4: POBLACION | G4: PROV. | H4: DISTANCIA KM. | K4: CHIQUI FAM | M4: PUNTUACION | Q4: Por andada realizada | R4: Puntos | S4: Por distancia recorrida
A5: 1 | B5: 2025-02-02 | C5: XVI | D5: Ruta de Los Monegros | E5: C. M. Os Andarines d'Aragón | F5: Villafranca de Ebro | G5: ZA | I5: 18 | J5: 22 | K5: SI | M5: =IF(H5="",0,H5+IF(H5<30,15,IF(H5<50,20,IF(H5<75,30,IF(H5<=100,50,IF(H5>100,70,0)))))) -> 0 | N5: 33 | O5: 37 | Q5: < 29 Km | R5: 15 | S5: 1 Punto /Km
A6: 2 | B6: 22-23/02/2025 | C6: VIII | D6: Caminata "En la Flor del Almendro" | E6: Ayto. de Ayerbe Club Deportivo Padelante | F6: Ayerbe | G6: HU | H6: 12 | I6: 18 | J6: 24 | M6: =IF(H6="",0,H6+IF(H6<30,15,IF(H6<50,20,IF(H6<75,30,IF(H6<=100,50,IF(H6>100,70,0)))))) -> 27 | N6: =IF(I6="",0,I6+IF(I6<30,15,IF(I6<50,20,IF(I6<75,30,IF(I6<=100,50,IF(I6>100,70,0)))))) -> 33 | O6: =IF(J6="",0,J6+IF(J6<30,15,IF(J6<50,20,IF(J6<75,30,IF(J6<=100,50,IF(J6>100,70,0)))))) -> 39 | Q6: 30 Km - 49 Km | R6: 20
B7: 22-23/02/2025 | C7: VIII | D7: Caminata "En la Flor del Almendro" | E7: Ayto. de Ayerbe Club Deportivo Padelante | F7: Ayerbe | G7: HU | H7: 12 | I7: 18 | J7: 24 | M7: 27 | N7: 33 | O7: 39 | Q7: 50 Km - 74 Km | R7: 30
A8: 3 | B8: 2025-03-01 | C8: XII | D8: Ruta de la Reconquista | E8: A. D. Centro Excursionista Ribagorza (CER) | F8: Montañana | G8: HU | I8: 12 | J8: 22 | K8: SI | M8: =IF(H8="",0,H8+IF(H8<30,15,IF(H8<50,20,IF(H8<75,30,IF(H8<=100,50,IF(H8>100,70,0)))))) -> 0 | N8: =IF(I8="",0,I8+IF(I8<30,15,IF(I8<50,20,IF(I8<75,30,IF(I8<=100,50,IF(I8>100,70,0)))))) -> 27 | O8: =IF(J8="",0,J8+IF(J8<30,15,IF(J8<50,20,IF(J8<75,30,IF(J8<=100,50,IF(J8>100,70,0)))))) -> 37 | Q8: 75 Km - 100 Km | R8: 50
A9: 4 | B9: 2025-03-02 | C9: VII | D9: Marcha Senderista "Villa de Andorra" | E9: Club Comarcal Andorra-Sierra de Arcos | F9: Andorra | G9: TE | H9: 10 | I9: 14 | J9: 19 | M9: =IF(H9="",0,H9+IF(H9<30,15,IF(H9<50,20,IF(H9<75,30,IF(H9<=100,50,IF(H9>100,70,0)))))) -> 25 | N9: 29 | O9: 34 | Q9: > 100 Km | R9: 70
A10: 5 | B10: 2025-03-08 | C10: XXXVI | D10: Marcha Senderista "Comunidad de Calatayud" | E10: S. C y D. Comunidad Calatayud-Comuneros | F10: Miedes de Aragón | G10: ZA | I10: 12 | J10: 24 | K10: SI | M10: 0 | N10: 27 | O10: 39
A11: 6 | B11: 2025-03-08 | C11: III | D11: Marcha senderista ATADI | E11: ATADI ((Agrupación Turolense de Asociaciones de personas con Discapacidad Intelectual) | F11: Alcorisa | G11: TE | H11: 6 | I11: 12 | J11: 18 | M11: 21 | N11: 27 | O11: 33
A12: 7 | B12: 2025-03-08 | C12: II | D12: Día de la mujer | E12: FAM | M12: =IF(H12="",0,H12+IF(H12<30,15,IF(H12<50,20,IF(H12<75,30,IF(H12<=100,50,IF(H12>100,70,0)))))) -> 0 | N12: =IF(I12="",0,I12+IF(I12<30,15,IF(I12<50,20,IF(I12<75,30,IF(I12<=100,50,IF(I12>100,70,0)))))) -> 0 | O12: =IF(J12="",0,J12+IF(J12<30,15,IF(J12<50,20,IF(J12<75,30,IF(J12<=100,50,IF(J12>100,70,0)))))) -> 0
A13: 8 | B13: 2025-03-09 | C13: X | D13: Ruta de la Piedra | E13: C. M. Os Andarines d'Aragón FAM | F13: Puebla de Albortón | G13: ZA | I13: 15 | J13: 25 | K13: SI | M13: 0 | N13: 30 | O13: 40
A14: 9 | B14: 2025-03-16 | C14: XXIII | D14: Marcha senderista "Comarca del Matarraña/Matarranya" | E14: Comarca del Matarraña | F14: Mazaleón | G14: TE | I14: 12 | J14: 22 | K14: SI | M14: 0 | N14: 27 | O14: 37
A15: 10 | B15: 2025-03-16 | C15: XXIII | D15: Marcha senderista "Campo de Daroca" | E15: Comarca Campo de Daroca | F15: Cubel | G15: ZA | I15: 15 | J15: 23 | M15: 0 | N15: 30 | O15: 38
A16: 11 | B16: 2025-03-16 | C16: V | D16: Marcha Senderista Popular de Belchite | E16: A. D. Senderista Comarca Campo de Belchite | F16: Belchite | G16: ZA | H16: 12 | I16: 17 | J16: 20 | K16: SI | M16: 27 | N16: 32 | O16: 35
A17: 12 | B17: 2025-03-16 | C17: VIII | D17: Marcha Senderista y trail de Villarroya de los Pinares | E17: Ayto. de Villarroya de los Pinares A.D. Villarroya de los Pinares | F17: Villarroya de los Pinares | G17: TE | I17: 9 | J17: 13 | M17: 0 | N17: 24 | O17: 28
A18: 13 | B18: 2025-03-23 | C18: XVII | D18: Marcha senderista "Villa de Mequinenza" | E18: Ayto. de Mequinenza Asociacion Española Contra el Cancer | F18: Mequinenza | G18: ZA | I18: 12 | J18: 22 | M18: 0 | N18: 27 | O18: 37
A19: 14 | B19: 2025-03-23 | C19: XIV | D19: KMINA - Cuencas Mineras | E19: Comarca Cuencas Mineras | F19: La Zoma | G19: TE | I19: 8 | J19: 23 | K19: SI | M19: 0 | N19: 23 | O19: 38
A20: 15 | B20: 2025-03-23 | C20: XVIII | D20: La Vicorada | E20: C. D. Sediles | F20: Sediles | G20: ZA | I20: 15 | J20: 26 | M20: 0 | N20: 30 | O20: 41
A21: 16 | B21: 2025-03-29 | C21: IV | D21: Marcha Senderista "Villa de Biel" | E21: C. M. Os Andarines d'Aragon Ayto. de Biel Comarca Cinco Villas | F21: Biel | G21: ZA | I21: 16 | J21: 20 | K21: SI | M21: 0 | N21: 31 | O21: 35
A22: 17 | B22: 2025-03-30 | C22: V | D22: Zufariada | E22: A. D. El Pilar | F22: Zuera | G22: ZA | H22: 12 | I22: 18 | J22: 25 | M22: 27 | N22: 33 | O22: 40
A23: 18 | B23: 2025-04-05 | C23: VIII | D23: Marcha Senderista "El Santo" | E23: A. D. BTT Aniñon | F23: Aniñon | G23: ZA | H23: 12 | I23: 15 | J23: 20 | M23: 27 | N23: 30 | O23: 35
A24: 19 | B24: 2025-04-06 | C24: II | D24: Marcha senderista "Hojas Muertas" | E24: BTT Montalban Trail CD | F24: Montalbán | G24: TE | I24: 10 | J24: 20 | M24: 0 | N24: 25 | O24: 35
A25: 20 | B25: 2025-04-06 | C25: XXII | D25: Andada "Tras l'Arba de Tauste" | E25: C. M. El Caidero Colectivo Albardos / Colectivo Matarile | F25: Tauste | G25: ZA | I25: 9 | J25: 17 | K25: SI | M25: 0 | N25: 24 | O25: 32
A26: 21 | B26: 2025-04-12 | C26: V | D26: Circular de Arraro por las Crestas del Formiga | E26: Asociacion Valle de la Gloria | F26: Casbas (Panzano) | G26: HU | J26: 20 | M26: 0 | N26: 0 | O26: 35
A27: 22 | B27: 2025-04-12 | C27: XVII | D27: La Gayubada | E27: A. C. El Castillejo | F27: Torralbilla | G27: ZA | I27: 15 | J27: 25 | M27: 0 | N27: 30 | O27: 40
A28: 23 | B28: 2025-04-13 | C28: XII | D28: Andada-BTT "Sierra Vicort" | E28: Ayto. Belmonte de Gracian | F28: Belmonte de Gracián | G28: ZA | I28: 14 | J28: 18 | M28: 0 | N28: 29 | O28: 33
A29: 24 | B29: 2025-04-22 | C29: XXIV | D29: Jorgeada de Aragón | E29: C. M. Os Andarines d'Aragón | F29: Zaragoza | G29: ZA | H29: 9 | I29: 52 | J29: 80 | K29: SI | M29: 24 | N29: 82 | O29: 130
A30: 25 | B30: 2025-04-26 | C30: XIII | D30: Marcha senderista de primavera del Maestrazgo | E30: Comarca del Maestrazgo | F30: Castellote | G30: TE | H30: 6 | I30: 12 | J30: 20 | K30: SI | M30: 21 | N30: 27 | O30: 35
A31: 26 | B31: 2025-05-03 | C31: XIV | D31: Marcha senderista "Las Calzadas" | E31: Ayto. de Aliaga | F31: Aliaga | G31: TE | I31: 15 | J31: 22 | M31: 0 | N31: 30 | O31: 37
A32: 28 | B32: 2025-05-11 | C32: X | D32: Marcha senderista "Rodanas-Villa de Epila" | E32: Ayto. de Epila | F32: Epila-Monasterio de Rodanas | G32: ZA | I32: 11 | J32: 18 | M32: 0 | N32: 26 | O32: 33
A33: 27 | B33: 2025-05-15 | C33: XIX | D33: Marcha senderista "Villa de Ariño" | E33: Club Comarcal Andorra-Sierra de Arcos | F33: Ariño | G33: TE | H33: 10 | I33: 12 | J33: 18 | M33: 25 | N33: 27 | O33: 33
A34: 29 | B34: 2025-05-17 | C34: XVII | D34: Marcha "El Maestro Zapatero de Brea" | E34: A. D. Senderismo Brea de Aragón | F34: Brea de Aragón | G34: ZA | I34: 14 | J34: 24 | M34: 0 | N34: 29 | O34: 39
A35: 30 | B35: 2025-05-18 | C35: X | D35: Marcha Senderista "Jaca-Pueblos de la Solana" | E35: Club Atletismo Jaca | F35: Jaca | G35: HU | H35: 14 | I35: 24 | J35: 30 | K35: SI | M35: 29 | N35: 39 | O35: 50
A36: 31 | B36: 2025-05-18 | C36: I | D36: Marcha senderista "ChiquiAndarines" | E36: C. M. Os Andarines d'Aragón | F36: Zaragoza | G36: ZA | J36: 10 | K36: SI | M36: 0 | N36: 0 | O36: 25
A37: 32 | B37: 2025-05-24 | C37: I | D37: Marcha nórdica "Villa de Andorra" | E37: Club Comarcal Andorra-Sierra de Arcos | F37: Andorra | G37: TE | I37: 10 | J37: 14
A38: 33 | B38: 2025-05-25 | C38: X | D38: Deja Huella con Rey Ardid | E38: Fundacion Rey Ardid | F38: Juslibol | G38: HU | I38: 5 | J38: 10 | K38: SI | M38: 0 | N38: 20 | O38: 25
A39: 34 | B39: 2025-05-31 | C39: IV | D39: La Sotonera pueblo a pueblo | E39: Ayto. de la Sotonera C. M. Javieres | F39: Plasencia-Bolea | G39: HU | J39: 20 | M39: 0 | N39: 0 | O39: 35
A40: 35 | B40: 2025-06-01 | C40: XII | D40: Marcha "Miradores del Pirineo" | E40: Ayto. de Castejon de Valdejasa | F40: Castejon de Valdejasa | G40: ZA | I40: 12 | J40: 25 | K40: SI | M40: 0 | N40: 27 | O40: 40
A41: 36 | B41: 2025-06-06 | C41: XVII | D41: Marcha "Nocturna de Zaragoza" | E41: C. M. Os Andarines d'Aragón | F41: Zaragoza (Parque sindical) | G41: ZA | I41: 14 | J41: 22 | K41: SI | M41: 0 | N41: 29 | O41: 37
A42: 37 | B42: 2025-06-07 | C42: XII | D42: Ruta "Papa Luna" | E42: C. M. Isuara | F42: Illueca | G42: ZA | H42: 17 | I42: 20 | J42: 24 | M42: 32 | N42: 35 | O42: 39
A43: 38 | B43: 2025-06-08 | C43: XI | D43: Ruta del Acebo | E43: Ayto. de Añón de Moncayo | F43: Añón de Moncayo | G43: ZA | H43: 10 | I43: 17 | J43: 24 | K43: SI | M43: =IF(H43="",0,H43+IF(H43<30,15,IF(H43<50,20,IF(H43<75,30,IF(H43<=100,50,IF(H43>100,70,0)))))) -> 25 | N43: =IF(I43="",0,I43+IF(I43<30,15,IF(I43<50,20,IF(I43<75,30,IF(I43<=100,50,IF(I43>100,70,0)))))) -> 32 | O43: =IF(J43="",0,J43+IF(J43<30,15,IF(J43<50,20,IF(J43<75,30,IF(J43<=100,50,IF(J43>100,70,0)))))) -> 39
A44: 39 | B44: 2025-06-14 | C44: XIX | D44: Marcha de los Tres Ibones | E44: C. M. Asamun Asoc. de comerciantes del valle de Hecho | F44: Hecho | G44: HU | H44: 12 | I44: 31 | J44: 44 | M44: =IF(H44="",0,H44+IF(H44<30,15,IF(H44<50,20,IF(H44<75,30,IF(H44<=100,50,IF(H44>100,70,0)))))) -> 27 | N44: =IF(I44="",0,I44+IF(I44<30,15,IF(I44<50,20,IF(I44<75,30,IF(I44<=100,50,IF(I44>100,70,0)))))) -> 51 | O44: =IF(J44="",0,J44+IF(J44<30,15,IF(J44<50,20,IF(J44<75,30,IF(J44<=100,50,IF(J44>100,70,0)))))) -> 64
A45: 40 | B45: 2025-06-14 | C45: II | D45: Ruta senderista "Peña La Bailadera" | E45: Ayto. de Castiliscar | F45: Castiliscar | G45: ZA | I45: 11 | J45: 21 | M45: 0 | N45: 26 | O45: 36
A46: 42 | B46: 2025-07-05 | C46: X | D46: Andada de Sobrepuerto | E46: Asociación O'Zoque de Yebra de Basa Asociación Erata de Biescas | F46: Yebra de Basa | G46: HU | I46: 13 | J46: 24 | M46: 0 | N46: 28 | O46: 39
A47: 43 | B47: 2025-07-12 | C47: I | D47: Andada nocturna "Ruta del Diablo" | E47: Comarca Cinco Villas | F47: Biota-Layana | G47: ZA | I47: 7 | J47: 14 | M47: 0 | N47: 22 | O47: 29
A48: 44 | B48: 2025-09-13 | C48: IV | D48: Ruta "NOCITO. Sierras y Barrancos, Valles y Pueblos" | E48: C. M. Javieres Ayto. de Nueno | F48: Nocito | G48: HU | J48: 20 | M48: 0 | N48: 0 | O48: 35
A49: 41 | B49: 2025-09-20 | C49: XVIII | D49: Ruta de los Castillos | E49: C. M. Os Andarines d'Aragón Comarca de la Hoya de Huesca | F49: Bolea | G49: HU | H49: 15 | I49: 21 | J49: 33 | K49: SI | M49: 30 | N49: 36 | O49: 53
A50: 45 | B50: 2025-09-27 | C50: V | D50: Marcha del Abadiado (Historia y Naturaleza) | E50: Ayto. de Loporzano C. M. Javieres | F50: Castilsabas-Ermita del Viñedo | G50: HU | J50: 20 | M50: 0 | N50: 0 | O50: 35
A51: 46 | B51: 2025-09-28 | C51: XV | D51: Marcha senderista "Comarca del Jiloca" | E51: Comarca del Jiloca | F51: Tornos | G51: TE | H51: 6 | I51: 12 | J51: 22 | K51: SI | M51: 21 | N51: 27 | O51: 37
A52: 47 | B52: 2025-09-28 | C52: XXVII | D52: Dia del senderista | E52: FAM | M52: 0 | N52: 0 | O52: 0
A53: 48 | B53: 2025-10-04 | C53: XXI | D53: Redolada a Zaragoza | E53: C. M. Os Andarines d'Aragón | F53: Montañana | G53: ZA | I53: 15 | J53: 24 | K53: SI | M53: 0 | N53: 30 | O53: 39
A54: 49 | B54: 2025-10-05 | C54: XIX | D54: Ruta del Destierro | E54: C. M. Zorrolongo | F54: Ateca | G54: ZA | I54: 14 | J54: 27 | M54: 0 | N54: 29 | O54: 42
A55: 50 | B55: 2025-10-19 | C55: VII | D55: Marcha Senderista "Tastavins Trail" | E55: C. M. Matarraña Teams Ayto. de Peñarroya de Tastavins | F55: Peñarroya de Tastavins | G55: TE | J55: 14 | M55: 0 | N55: 0 | O55: 29
A56: 51 | B56: 2025-10-19 | C56: XXI | D56: Marcha senderista de otoño "Comarca del Maestrazgo" | E56: Comarca del Maestrazgo | F56: Pitarque | G56: TE | H56: 5 | I56: 12 | J56: 22 | K56: SI | M56: 20 | N56: 27 | O56: 37
A57: 52 | B57: 2025-10-19 | C57: XXII | D57: Marcha senderista "Aragon Sur" | E57: Grupo Alpino Javalambre | F57: Teruel | G57: TE | H57: 9 | I57: 17 | J57: 24 | M57: 24 | N57: 32 | O57: 39
A58: 53 | B58: 2025-10-19 | C58: XVI | D58: Marcha senderista "Valle de Anso" | E58: A. D. Linza | F58: Anso | G58: HU | I58: 8 | J58: 14 | M58: 0 | N58: 23 | O58: 29
A59: 54 | B59: 2025-10-25 | C59: XIII | D59: Ruta de los Balnearios de Jaraba | E59: Asociacion "Iniciativas Turísticas de Jaraba" | F59: Jaraba | G59: ZA | I59: 11 | J59: 22 | M59: 0 | N59: 26 | O59: 37
A60: 55 | B60: 2025-10-25 | C60: XIX | D60: Andada de otoño "Sierra de Luesia" | E60: A. C. Fayanas | F60: Luesia | G60: ZA | I60: 16 | J60: 20 | M60: 0 | N60: 31 | O60: 35
A61: 56 | B61: 2025-10-26 | C61: IV | D61: Marcha senderista "Villa de Gargallo" | E61: Club Comarcal Andorra-Sierra de Arcos | F61: Gargallo | G61: TE | I61: 12 | J61: 18 | M61: 0 | N61: 27 | O61: 33
A62: 57 | B62: 2025-11-02 | C62: II | D62: Ruta de los Tres Ríos | E62: C. M. A. C. O Trinquete C. M. Cenefos | F62: Arándiga-Morata | G62: ZA | I62: 14 | J62: 25 | M62: 0 | N62: 29 | O62: 40
A63: 58 | B63: 2025-11-08 | C63: V | D63: Caminata nocturna "Bajo las estrellas" | E63: Ayto. de Ayerbe Club Deportivo Padelante | F63: Ayerbe | G63: HU | J63: 12.5 | M63: 0 | N63: 0 | O63: 27.5
A64: 59 | B64: 2025-11-09 | C64: XXVII | D64: Marcha senderista del Mezquin | E64: MASEM | F64: Castelseras | G64: TE | H64: 12 | I64: 19 | J64: 23 | M64: 27 | N64: 34 | O64: 38
A65: 60 | B65: 2025-12-07 | C65: XI | D65: Caminata "Ruta de la ermitas" | E65: Ayto. de Ayerbe Club Deportivo Padelante | F65: Ayerbe | G65: HU | I65: 12 | J65: 18 | M65: 0 | N65: 27 | O65: 33

Sheet Formulas
B2: MAYUSC(CONCATENAR(E4;" ";F4;" ";G4)) | C2: MAYUSC(CONCATENAR(E4;" ";F4;)) | D2: MAYUSC(F4) | E2: SI(CONTAR.SI(General!A:BN;A4)>0;"Sí está";"No está")
B4: SI.ERROR(IZQUIERDA(ESPACIOS(A2);ENCONTRAR(" ";ESPACIOS(A2);ENCONTRAR(" ";ESPACIOS(A2))+1)-1);ESPACIOS(A2))
B6: SI(LARGO(A2)-LARGO(SUSTITUIR(A2;" ";""))<2;"";EXTRAE(A2;HALLAR("¶";SUSTITUIR(A2;" ";"¶";2))+1;LARGO(A2)))
B9: SI.ERROR(BUSCARV($BN6;Andada!$A:$D;7;FALSO);"NO")
